Cogmind - Beta 17 @@@ ROGUE MODE // 2026.07.03 @ 06:47:00 Player: shapeshifter Result: Heading to fleet! Performance ------------- Evolutions (9) 4500 Regions Visited (23) 4600 Robots Destroyed (331) 1655 Value Destroyed (16807) 16807 Prototype IDs (130) 2600 Alien Tech Used (11) 2200 Bonus (60306) 60306 TOTAL SCORE: 92668 Bonus ------- Triggered High Security 500 Triggered Max Security 2000 High Alert Combat Kills 6412 Follower Combat Kills 7057 Prayed to X0-1V1 5000 Major X0-1V1 Interference 16400 Met Imprinter 300 Was Imprinted 300 Found Hidden Lab 3000 Used Core Reset Matrix 3000 Integrated Exoskeleton 5000 Met MAIN.C 5000 Destroyed MAIN.C Shell 5000 Win 3000 Friendly Fire -1663 Cogmind --------- Core Integrity 284/1550 Matter 900/900 Energy 755/1400 System Corruption 26% +Membrane Temperature Cool (0) +ITN Movement Walking (30) Location To Fleet Rendezvous Parts ------- > --- POWER (1) -------- (None) > --- PROPULSION (4) --- Sigix Exoskeleton > --- UTILITY (6) ------ Medium Storage Unit Advanced Visual Processing Unit Improved Transmission Jammer Spacefold Activator > --- WEAPON (3) ------- Sigix Sheargun Sigix Sheargun Sigix Sheargun > --- INVENTORY (10) --- Reinforced Deuterium Engine Advanced Force Field Hacking Drone Bay (1/1) Transdimensional Reconstructor Integrity Redistributor Improved Potential Cannon Omega Cannon Advanced Remote Datajack Peak State ------------ > --- POWER ------------ Light Quantum Reactor > --- PROPULSION ------- Sigix Exoskeleton > --- UTILITY ---------- Medium Storage Unit Experimental Transmission Jammer Experimental Cloaking Device Advanced Point Defense System Spacefold Activator > --- WEAPON ----------- Sigix Sheargun Sigix Sheargun Improved Potential Cannon > --- INVENTORY -------- Advanced Force Field Hacking Drone Bay Transdimensional Reconstructor Core Regenerator Integrity Redistributor Sigix Sheargun Sigix Sheargun Omega Cannon Advanced Remote Datajack [Rating: 273] Favorites ----------- Power Reinforced Quantum Reactor Engine Deuterium Engine Power Core Micro Nuclear Core Reactor Reinforced Quantum Reactor Propulsion Myomer Leg Treads Light Treads Leg Myomer Leg Wheel Armored Wheel Hover Unit Antigrav System Flight Unit Experimental Cesium-ion Thruster Utility Self-contained Transmogrifier Device Self-contained Transmogrifier Storage High-capacity Storage Unit Processor Experimental Core Analyzer Hackware Advanced Hacking Suite Protection Centrium Medium Armor Plating Artifact Spacefold Activator Weapon KE Penetrator Energy Gun Sigix Sheargun Energy Cannon Warp Cannon Ballistic Gun KE Penetrator Ballistic Cannon Battle Cannon Launcher Scatter Rocket Array Special Weapon Improved Remote Datajack Impact Weapon Mace Slashing Weapon Phasing Sabre Piercing Weapon CR-A16's Pointy Stick Special Melee Weapon Advanced Datajack Build | -11 -10 -10 -8 -7 -7 -7 -7 -7 -6 -6 -5 -5 -5 -5 -4 -4 -4 -3 -2 -2 -2 -1 -1 ------- Run | Yrd Mat Sub Mat Fac Was Fac Low Zio Pro Fac Fac Ext Cet Arc Fac Arm Lab Res Res Tes Sec Acc Com Slots Evolved 18 | . . . 4 2 . . . . . 2 2 . . . 2 . . 2 2 . . 2 . Power 1 | . . . . . . . . . . . . . . . 1 . . . . . . . . Propulsion 7 | . . . 1 1 . . . . . 1 1 . . . . . . 2 1 . . . . Utility 7 | . . . 2 1 . . . . . 1 1 . . . 1 . . . 1 . . . . Weapon 3 | . . . 1 . . . . . . . . . . . . . . . . . . 2 . Parts Attached 363 | 7 12 37 20 4 6 1 3 7 . 3 19 27 8 6 6 36 7 20 56 35 31 4 8 Power 47 | 1 2 6 2 . 1 . . . . . 4 4 . 1 3 4 1 2 8 4 2 . 2 Engine 13 | 1 1 6 . . . . . . . . . 2 . 1 . . . 1 . . . . 1 Core 9 | . 1 . 2 . . . . . . . 3 1 . . . 1 . . 1 . . . . Reactor 25 | . . . . . 1 . . . . . 1 1 . . 3 3 1 1 7 4 2 . 1 Propulsion 85 | 2 3 10 8 1 1 1 2 . . . 4 8 1 2 . 12 . 3 15 6 6 . . Treads 8 | 2 3 . 1 . . . . . . . . . 1 1 . . . . . . . . . Leg 53 | . . . 7 1 1 1 2 . . . 3 8 . 1 . 3 . . 14 6 6 . . Wheel 11 | . . 10 . . . . . . . . 1 . . . . . . . . . . . . Hover 4 | . . . . . . . . . . . . . . . . 2 . 1 1 . . . . Flight 9 | . . . . . . . . . . . . . . . . 7 . 2 . . . . . Utility 128 | 2 3 6 3 3 1 . . 5 . 2 7 6 3 2 2 10 3 15 23 12 15 1 4 Device 73 | 1 1 4 3 . . . . . . . 3 4 . 2 1 9 1 11 10 8 11 1 3 Storage 13 | 1 2 . . . . . . . . . 1 1 . . 1 . . . 2 4 1 . . Processor 13 | . . . . . . . . 5 . 1 1 . . . . 1 . 2 2 . . . 1 Hackware 9 | . . . . 1 1 . . . . . 1 . . . . . 1 2 3 . . . . Protection 19 | . . 2 . 2 . . . . . 1 1 1 3 . . . 1 . 6 . 2 . . Artifact 1 | . . . . . . . . . . . . . . . . . . . . . 1 . . Weapon 103 | 2 4 15 7 . 3 . 1 2 . 1 4 9 4 1 1 10 3 . 10 13 8 3 2 Energy Gun 33 | 1 . 6 2 . 1 . 1 . . . . 2 . . . 1 1 . 8 3 3 2 2 Energy Cannon 19 | . . 3 2 . 1 . . . . . 1 . . . . 7 1 . 1 2 1 . . Ballistic Gun 24 | 1 4 3 3 . . . . 1 . 1 . 3 2 . 1 . . . . 4 1 . . Ballistic Cannon 7 | . . 1 . . . . . . . . 1 2 . . . 1 . . . 1 1 . . Launcher 7 | . . . . . 1 . . 1 . . . . 1 . . 1 . . 1 1 1 . . Special Weapon 4 | . . . . . . . . . . . 1 . 1 . . . . . . 1 . 1 . Impact Weapon 1 | . . 1 . . . . . . . . . . . . . . . . . . . . . Slashing Weapon 3 | . . 1 . . . . . . . . . 2 . . . . . . . . . . . Piercing Weapon 2 | . . . . . . . . . . . . . . . . . 1 . . 1 . . . Special Melee Weapon 3 | . . . . . . . . . . . 1 . . 1 . . . . . . 1 . . Unidentified Prototypes 65 | . 1 1 2 . 1 . . 4 . . 1 3 1 . . 6 7 . 9 22 7 . . Corrupted Parts 2 | . . . . . . . . . . . 1 . . . . 1 . . . . . . . System Corruption 6 | . . . . . . . . . . . 5 . . . . 1 . . . . . . . Parts Lost 104 | . 2 10 7 . . . . . . . 14 3 3 4 6 22 . 9 11 4 8 . 1 Power 15 | . . 3 1 . . . . . . . 2 . 1 1 . 2 . 1 1 1 2 . . Propulsion 33 | . . 4 3 . . . . . . . 6 2 . 1 3 7 . 4 2 1 . . . Utility 29 | . . 2 1 . . . . . . . 2 . . . 1 10 . 3 3 1 5 . 1 Weapon 27 | . 2 1 2 . . . . . . . 4 1 2 2 2 3 . 1 5 1 1 . . Highest Loss Streak 14 | . 1 5 3 . . . . . . . 5 2 3 3 5 14 . 9 7 2 3 . 1 To Critical Strikes 1 | . . . . . . . . . . . . . 1 . . . . . . . . . . Average Backups 9 | 2 7 8 14 16 14 13 13 14 13 12 13 4 5 6 6 5 2 4 4 17 18 7 7 Power . | . . . . . . . . . . . . . . . . . . . . 1 . . . Propulsion . | . 1 . 2 1 1 . . . . . . . 1 . . . . . . 1 . . . Utility 5 | . 2 4 7 9 7 8 9 10 10 9 9 3 3 3 4 2 . 2 2 8 8 1 1 Weapon 1 | 1 3 1 2 2 2 1 2 1 1 1 1 1 1 1 1 1 . 1 . 4 4 2 2 Tool/Special . | . . . . . . . . . . . . . . . . . . . . . . . . Unused Backups 79 | . 2 28 . 2 3 2 2 5 . . 8 3 2 1 1 1 . . 5 2 7 2 3 Power 3 | . . . . . . . . . . . . 1 . . . . . . . 2 . . . Propulsion 15 | . . 9 . . . . . . . . . . 1 . 1 . . . . . 4 . . Utility 32 | . . 7 . 1 1 1 1 5 . . 7 2 1 . . 1 . . . . 2 2 1 Weapon 24 | . 2 12 . 1 1 . 1 . . . . . . 1 . . . . 5 . 1 . . Tool/Special 5 | . . . . . 1 1 . . . . 1 . . . . . . . . . . . 2 Average Slot Usage (%) 85 | . 100 94 85 91 92 89 83 83 100 95 88 81 86 69 95 69 49 68 85 92 86 71 69 Engine 6 | . 10 18 10 15 14 7 7 5 5 . . 5 . 3 . . . 2 . . . . 1 Core 2 | . 3 . 4 . . 7 7 7 1 5 5 1 . 1 2 . . . . . . . . Reactor 3 | . . . . . . . . . 7 6 3 1 5 . 9 8 2 . 10 15 14 . . Treads 3 | . 28 2 2 . . . . . . . . . . 2 . . . . . . . . . Leg 16 | . . . 19 30 31 30 20 16 30 26 24 22 21 14 25 14 . . 26 28 23 7 7 Wheel 3 | . . 22 4 . . . . . . . . . . . . . . . . . . . . Device 16 | . 14 14 15 10 15 12 15 17 7 9 18 15 17 23 25 24 13 10 16 15 16 21 19 Storage 6 | . 14 7 8 7 7 7 7 7 7 6 5 2 5 5 5 3 . . . 4 4 7 7 Processor 2 | . . . . . . 5 . 2 15 11 8 6 5 2 5 5 . 2 4 2 . . 1 Hackware 2 | . . . . 3 3 1 . . . . 1 2 . . . . 2 11 12 12 10 . . Protection 2 | . . . 2 6 3 3 7 2 . 6 3 4 10 1 8 . 2 3 3 3 3 . . Energy Gun 6 | . 7 5 3 . 2 . 1 18 14 6 2 1 . 9 2 1 1 3 2 2 7 27 24 Energy Cannon 1 | . . 2 . . 1 2 . . 1 6 2 1 . . . 3 . . 4 1 2 . . Ballistic Gun 4 | . 20 9 3 . . 6 15 . . 3 . 4 2 . . . . . . 2 . . . Ballistic Cannon 1 | . . 5 8 15 5 . . . . . 1 2 . . 3 . 2 . . . . . . Launcher 1 | . . . . . 3 . . 1 6 2 . 1 12 . 3 . . . . . . . . Peak Build Rating 273 | 7 22 30 51 59 78 81 78 84 75 89 121 116 119 116 130 158 102 139 191 227 248 268 273 Average Rating 96 | 5 10 17 42 57 65 76 72 70 73 82 96 101 110 97 121 107 86 114 167 203 220 260 253 On Entrance 94 | . 7 22 20 51 58 78 78 72 74 75 89 37 114 116 103 97 82 97 89 191 206 248 260 Avg Prop Armor Cover (%) 12 | . . 12 12 . . . . . . . 22 25 . 5 . 22 . 2 13 . . . . Naked Turns . | . . . . . . . . . . . . . . . . . . . . . . . . Heaviest Build 218 | 13 48 64 70 77 85 82 82 102 91 95 112 77 73 61 88 112 32 45 216 210 218 56 82 Greatest Support 234 | 40 40 44 73 90 103 103 80 68 71 66 96 125 125 100 114 148 33 43 222 234 221 60 60 Greatest Overweight (x) 4 | . 1 2 4 . 1 1 1 1 1 1 2 3 . . . 1 1 1 1 1 1 . 1 Average Overweight (x) . | . . 1 1 . . . . . 1 1 . . . . . . . . . . . . . Largest Inventory Capacity 25 | 8 20 20 20 20 20 20 20 20 20 20 20 10 10 10 10 10 5 5 25 25 25 10 10 Average Capacity 14 | 7 13 12 20 20 20 20 20 20 20 20 19 7 10 10 10 8 5 5 6 25 23 10 10 Most Carried 25 | 5 12 20 20 20 20 20 20 20 17 19 20 10 10 10 10 10 5 5 12 25 25 10 10 Average Carried 12 | 2 7 9 17 19 19 19 17 19 17 17 18 7 9 8 9 7 2 5 5 20 22 9 9 Final Capacity 25 | 8 20 20 20 20 20 20 20 20 20 20 5 10 10 10 10 5 5 5 25 25 10 10 10 Final Carried 24 | 2 11 18 20 19 20 19 16 17 17 18 5 10 8 9 10 5 5 5 10 24 10 10 10 Transmogrified Parts 201 | . . . 18 . 10 20 5 27 10 2 12 12 17 43 10 13 2 . . . . . . Integrity Recovered 2822 | . . . 317 . 121 284 35 157 54 . 52 360 922 406 68 46 . . . . . . . Class Distribution -------------------- 44% | Mutant 7% | Hacker-Mutant 6% | Tank 5% | Scavenger-Mutant 5% | Gunner 4% | Hacker-Tank 4% | Scavenger-Tank 3% | Alien-Sigix 3% | Commander-Mutant Dominant Class ---------------- Mutant | -10/Materials Mutant | -10/Subcaves Mutant | -8/Materials Commander-Mutant | -7/Factory Mutant | -7/Waste Mutant | -7/Factory Mutant | -7/Lower Caves Tank | -7/Zion Gunner | -6/Proximity Caves Gunner | -6/Factory Scavenger-Tank | -5/Factory Commander-Tank | -5/Extension Scavenger-Tank | -5/Cetus Mutant | -5/Archives Mutant | -4/Factory Mutant | -4/Armory Sprinter | -4/Lab Hacker-Sprinter | -3/Research Messiah-Mutant | -2/Research Hacker-Mutant | -2/Testing Hacker-Tank | -2/Section 7 Alien-Sigix | -1/Access Alien-Sigix | -1/Command Resources | -11 -10 -10 -8 -7 -7 -7 -7 -7 -6 -6 -5 -5 -5 -5 -4 -4 -4 -3 -2 -2 -2 -1 -1 ----------- Run | Yrd Mat Sub Mat Fac Was Fac Low Zio Pro Fac Fac Ext Cet Arc Fac Arm Lab Res Res Tes Sec Acc Com Matter Collected 14935 | 291 334 2013 1317 45 260 385 248 108 116 64 871 1492 161 326 552 986 . 233 1371 1746 1646 40 330 Remotely 907 | . . . . . . . . . . . . . . . 111 796 . . . . . . . Salvage Created 17906 | 125 694 671 887 32 946 212 279 . 26 . 1200 2062 10 320 649 329 . 30 2797 1705 1493 2010 1429 Parts 784 | 14 43 37 44 2 8 10 8 . . . 44 78 3 16 17 22 . 4 129 75 69 102 59 Haulers Intercepted 4 | . 1 . . . . . . . . . . 1 . . . . . . . . . 2 . Recyclers Shooed 9 | 1 . . . . . 1 . . . . 2 3 . . . . . . 1 . . . 1 Parts Field Recycled . | . . . . . . . . . . . . . . . . . . . . . . . . Retrieved Matter . | . . . . . . . . . . . . . . . . . . . . . . . . Parts Self-Destructed 60 | . . 28 . . . . 24 . 8 . . . . . . . . . . . . . . Prevented 3 | . . 2 . . . . . . 1 . . . . . . . . . . . . . . Parts Restored . | . . . . . . . . . . . . . . . . . . . . . . . . Kills | -11 -10 -10 -8 -7 -7 -7 -7 -7 -6 -6 -5 -5 -5 -5 -4 -4 -4 -3 -2 -2 -2 -1 -1 ------- Run | Yrd Mat Sub Mat Fac Was Fac Low Zio Pro Fac Fac Ext Cet Arc Fac Arm Lab Res Res Tes Sec Acc Com Combat Hostiles Destroyed 252 | . 19 17 17 1 4 3 5 . 2 . 19 34 . 4 12 6 . . 40 22 17 23 7 Melee 9 | . . 4 1 . . 1 . . . . 2 . . 1 . . . . . . . . . Guns 103 | . 19 9 9 . . . 5 . 1 . . 10 . . 3 . . . 4 4 9 23 7 Cannons 93 | . . 2 6 1 2 2 . . 1 . 16 10 . . 5 3 . . 25 12 8 . . AOE 24 | . . 1 . . 2 . . . . . . 14 . 3 3 1 . . . . . . . Classes Destroyed 29 | 2 5 2 5 . 1 2 1 . 1 . 2 3 . . . 1 . . . 1 1 1 1 Worker 9 | . 5 . 1 . . . . . . . . 1 . . . . . . 1 1 . . . Builder 9 | . . . . . . . . . . . 5 1 . . . . . . . 3 . . . Tunneler 3 | 3 . . . . . . . . . . . . . . . . . . . . . . . Hauler 4 | . 1 . . . . . . . . . . 1 . . . . . . . . . 2 . Recycler 6 | 1 . . . . . . . . . . 1 2 . . 1 . . . . . . 1 . Mechanic 2 | . . . . . . . . . . . . 1 . . . . . . . . . 1 . Operator 13 | . . . . . . 1 . . . . . . . 9 . . . 1 1 . 1 . . Drone 1 | . . . . . . . . . 1 . . . . . . . . . . . . . . Turret 2 | . . 2 . . . . . . . . . . . . . . . . . . . . . Watcher 18 | . 3 . . . . 1 . . . . . 2 1 . 2 . . . 2 2 1 3 1 Swarmer 46 | . 11 7 1 . . . . . . . 1 6 . . . . . . 10 . . 9 1 Cutter 2 | . . . . . . . . . . . 2 . . . . . . . . . . . . Saboteur 1 | . . . . . . . . . . . . 1 . . . . . . . . . . . Grunt 71 | . 8 5 8 1 . 2 2 . . . 7 14 . . 4 . . . 13 3 . 4 . Brawler 7 | . . . 1 . . . . . . . 1 4 . . . . . . . . . 1 . Duelist 6 | . . . . . . . 1 . 1 . . . . . . . . . . 2 2 . . Protector 1 | . . . . . . . . . . . . . . . . . . . . . . 1 . Researcher 2 | . . . . . . . . . . . . . . . . . . . . . 2 . . Sentry 25 | . . . 3 . . . 1 . . . 2 3 . 4 2 . . . 5 1 3 . 1 Demolisher 2 | . . . . . . . . . . . . 2 . . . . . . . . . . . Specialist 6 | . . . 1 . . . . . . . 1 2 . . . . . . . 2 . . . Hunter 14 | . . . 2 . 1 . . . . . 1 . . . 2 . . . . 7 1 . . Programmer 46 | . . . . . . 1 1 . . . 2 2 . . 4 5 . . 12 5 7 5 2 Heavy 4 | . . . 1 . . . . . . . 2 . . . . . . . . . . 1 . Behemoth 3 | . . . . . . . . . . . . . . . . 1 . . . . 1 . 1 Compactor 4 | . . . . . 4 . . . . . . . . . . . . . . . . . . S7 Guard 1 | . . . . . . . . . . . . . . . . . . . . . 1 . . M Shell/Def 1 | . . . . . . . . . . . . . . . . . . . . . . . 1 Lightning 1 | . . . . . . . . . . . . . . . . . . . . . . . 1 Striker 6 | . . . . . . . . . . . . . . . . . . . . 2 2 2 . Subdweller 5 | . . 5 . . . . . . . . . . . . . . . . . . . . . Assembled 2 | . . . . . . . . . . . . . . . . . . . . . . . 2 Wasp 1 | . . . . . . 1 . . . . . . . . . . . . . . . . . Thug 5 | . . . . . . . . . . . 1 2 . 2 . . . . . . . . . Savage 2 | . . . . . . . . . . . . 1 . 1 . . . . . . . . . Butcher 1 | . . . . . . . . . . . . . . 1 . . . . . . . . . Best Kill Streak 30 | 2 6 4 7 1 2 2 2 . 1 . 5 18 1 3 3 2 . 1 13 7 3 30 3 Combat Bots Only 19 | . 3 4 7 1 2 2 2 . 1 . 5 17 . 2 2 2 . . 12 6 3 19 2 Max Kills in Single Turn 16 | 1 2 1 1 1 2 1 2 . 1 . 4 16 1 3 2 1 . 1 1 2 2 2 2 Gunslinging 1 | . . . . . . . 1 . . . . . . . . . . . . . . 1 . Exploded 12 | . . 1 . . 1 . . . . . . 12 . 1 2 1 . . . . . . . Melee 1 | . . 1 1 . . 1 . . . . 1 . . 1 . . . . . . . . . Uniques/NPCs Destroyed 1 | . . . . . . . . . . . . . . . . . . . . . . . 1 MAIN.C Shell (-1/Command) Combat | -11 -10 -10 -8 -7 -7 -7 -7 -7 -6 -6 -5 -5 -5 -5 -4 -4 -4 -3 -2 -2 -2 -1 -1 -------- Run | Yrd Mat Sub Mat Fac Was Fac Low Zio Pro Fac Fac Ext Cet Arc Fac Arm Lab Res Res Tes Sec Acc Com Hostile Shots Fired 2959 | . 111 179 126 39 . 26 36 . 11 6 205 100 11 68 220 315 . 82 189 252 333 132 518 Missed 974 | . 35 51 35 16 . 15 22 . 3 1 63 27 4 21 73 93 . 28 58 97 118 46 168 Hits 1985 | . 76 128 91 23 . 11 14 . 8 5 142 73 7 47 147 222 . 54 131 155 215 86 350 Melee 43 | . . . 11 . . . . . . . 4 . . . . 1 . . . 17 7 3 . Projectile 1942 | . 76 128 80 23 . 11 14 . 8 5 138 73 7 47 147 221 . 54 131 138 208 83 350 AOE 7 | . . . . . . . . . . . . 2 . . . 4 . 1 . . . . . Critical Strikes 95 | . . . 4 . . . 1 . . . 4 4 1 . 11 13 . 3 9 13 11 1 20 Actively Blocked 3 | . . . . . . . . . . . . . . . 2 1 . . . . . . . Part Disruptions 3 | . . . . . . . . . . . . . . . . 2 . . 1 . . . . Damage Taken 33146 | . 826 1511 1536 386 . 240 191 . 108 64 2605 1849 272 1329 1857 4440 . 1532 3044 3836 2878 554 4088 Core 5499 | . 111 329 209 . . 46 42 . . . 379 271 55 85 307 990 . 258 275 201 288 207 1446 Absorbed by Shields 7437 | . . . . . . . . . . . 146 . . . 964 440 . . . 503 2275 537 2572 Redirected to Shielding 423 | . . . . . . 13 4 . . . . . . . 291 20 . . 95 . . . . Ignored by Resistances 10392 | . . 23 . 5 . 15 2 . . 30 134 34 . 9 441 164 . 12 . 301 622 1269 7331 Regen/Repaired (Parts) 1092 | . . . . . 279 40 26 704 . . . . . . . . . 43 . . . . . Core Remaining (%) 65 | 100 . 80 58 . . . . . 86 100 . . . 88 . . 4 79 . . 45 . 18 Volleys Fired 1256 | 7 81 134 52 6 13 35 11 2 14 2 75 68 5 81 76 39 3 1 151 121 147 49 83 Largest 4 | 2 2 3 2 2 2 2 2 1 3 3 2 4 1 1 2 2 1 1 2 3 3 4 4 Hottest 400 | 70 70 180 98 77 83 121 66 75 200 178 100 256 48 75 240 240 58 80 176 296 308 400 400 Shots Fired 2081 | 14 162 229 78 12 20 50 22 2 19 6 76 156 5 81 95 65 3 1 151 185 236 170 243 Gun 1400 | 14 162 161 54 . . 39 22 2 17 4 5 88 . 52 45 12 . 1 49 108 152 170 243 Cannon 633 | . . 68 24 12 17 11 . . 1 2 71 66 3 . 46 50 3 . 102 77 80 . . Launcher 43 | . . . . . 3 . . . 1 . . 2 1 29 4 3 . . . . . . . Special 5 | . . . . . . . . . . . . . 1 . . . . . . . 4 . . Kinetic 677 | 7 95 162 50 12 17 35 22 . . 2 39 104 3 . 50 2 3 . . 52 22 . . Thermal 808 | 7 67 67 12 . . 4 . 2 13 2 32 50 . 52 41 48 . . 136 133 142 . . Explosive 43 | . . . . . 3 . . . 1 . . 2 1 29 4 3 . . . . . . . Electromagnetic 79 | . . . 16 . . 11 . . 5 2 5 . . . . 8 . 1 1 . 30 . . Slashing 451 | . . . . . . . . . . . . . . . . . . . . . 38 170 243 Phasic 18 | . . . . . . . . . . . . . . . . 4 . . 14 . . . . Robot Hit Streak 62 | 3 11 19 9 4 16 4 8 . 6 2 8 11 2 11 15 5 . . 62 43 26 11 24 Robot Miss Streak 27 | 2 3 3 3 27 3 4 2 . 5 7 7 8 1 4 4 6 . 3 4 6 6 8 4 Penetration Max 2 | . . . 2 . . 1 . . . . 1 1 . . 1 . . . . 1 1 1 1 Secondary Targets 22 | . 2 2 1 . . . 2 . . . . . . . . . . . . . 2 10 3 Max Gunslinging Chain 1 | . 1 1 1 . . . 1 . . . . . . . . . . . . . 1 1 1 Shots Hit Robots 1207 | 7 98 104 55 4 16 21 17 . 4 2 56 86 3 53 56 29 . 7 95 105 149 84 156 Core Hits 684 | 5 43 31 38 3 13 6 9 . 3 2 27 124 6 58 32 12 . 2 44 56 77 39 54 Critical Kills 44 | . 1 . 3 . . 1 . . . . . 12 . . . 1 . . 10 11 5 . . Critical Parts Destroyed 41 | . 1 2 3 . . . . . . . . 8 . . . . . . . 8 19 . . Critical Strikes 138 | 1 4 2 6 . . 1 . . . . 3 24 . 4 3 2 . 1 11 28 47 1 . Burn 12 | 1 2 . . . . . . . . . . 1 . 4 1 . . . 1 2 . . . Meltdown 16 | . . . . . . . . . . . . . . . . 1 . . 10 5 . . . Destroy 100 | . 2 . 6 . . 1 . . . . . 23 . . . . . . . 21 47 . . Blast 4 | . . . . . . . . . . . 2 . . . 2 . . . . . . . . Corrupt 1 | . . . . . . . . . . . . . . . . 1 . . . . . . . Smash 2 | . . 2 . . . . . . . . . . . . . . . . . . . . . Sever 2 | . . . . . . . . . . . 1 . . . . . . . . . . 1 . Impale 1 | . . . . . . . . . . . . . . . . . . 1 . . . . . Melee Attacks 83 | . . 35 1 . . 11 . . . . 11 1 . . . . . 21 2 1 . . . Impact 36 | . . 25 . . . 11 . . . . . . . . . . . . . . . . . Slashing 21 | . . 10 1 . . . . . . . 10 . . . . . . . . . . . . Piercing 25 | . . . . . . . . . . . . 1 . . . . . 21 2 1 . . . Sneak Attacks 5 | . . 1 . . . 1 . . . . 1 1 . . . . . 1 . . . . . Combat Hostiles 1 | . . 1 . . . . . . . . . . . . . . . . . . . . . Follow-up Attacks 1 | . . . . . . . . . . . 1 . . . . . . . . . . . . Damage Inflicted 69277 | 85 1151 1932 1306 125 1070 837 422 . 71 97 3584 5110 198 2267 3124 1470 . 325 7097 16012 5313 5752 11929 Guns 30685 | 85 1151 1060 523 . . 297 422 . 51 10 49 1616 . 623 602 227 . 13 829 1868 3600 5730 11929 Cannons 29331 | . . 300 682 125 639 181 . . 20 87 2539 1077 17 . 1211 975 . . 6261 13633 1584 . . Explosions 7554 | . . . 70 . 431 . . . . . 773 2374 181 1602 1240 243 . . . 511 129 . . Melee 1537 | . . 572 31 . . 359 . . . . 220 43 . . . . . 312 . . . . . Ramming 170 | . . . . . . . . . . . 3 . . 42 71 25 . . 7 . . 22 . Kinetic 9071 | 36 576 672 478 125 463 270 422 . . . 1768 1934 17 . 1247 . . . . 703 360 . . Thermal 30879 | 49 575 688 572 . 375 27 . . 41 87 771 759 . 623 649 975 . . 6606 15309 2773 . . Explosive 6691 | . . . . . 232 . . . . . 773 2374 181 1602 1157 243 . . . . 129 . . Electromagnetic 1056 | . . . 225 . . 181 . . 30 10 49 . . . . 113 . 13 . . 435 . . Impact 931 | . . 572 . . . 359 . . . . . . . . . . . . . . . . . Slashing 19526 | . . . 31 . . . . . . . 220 . . . . . . . . . 1616 5730 11929 Piercing 355 | . . . . . . . . . . . . 43 . . . . . 312 . . . . . Phasic 598 | . . . . . . . . . . . . . . . . 114 . . 484 . . . . Highest Corruption 26 | . 3 17 2 1 1 3 3 4 4 . 10 13 . 8 4 14 . 2 26 2 11 14 26 Average Corruption 6 | . 2 9 2 1 1 2 3 3 4 . 5 3 . 5 3 9 . 1 19 1 11 14 15 Corruption Purged 3 | . . . . . . . . . . . . . . 3 . . . . . . . . . Corruption Blocked . | . . . . . . . . . . . . . . . . . . . . . . . . Effects 300 | . 18 15 . . 1 8 6 2 22 . 15 12 . 38 7 31 . 1 70 13 2 9 30 Message Errors 55 | . 8 2 . . 1 2 1 . 2 . . 4 . 9 1 4 . 1 16 2 . . 2 Matter Fused 67 | . 6 4 . . . 1 . 1 11 . 4 1 . 10 2 4 . . 12 1 2 . 8 Heat Flow Errors 39 | . . 1 . . . 2 3 . 2 . 2 . . 7 1 3 . . 11 2 . 2 3 Energy Discharges 34 | . 1 1 . . . 2 . . 3 . 2 2 . 5 2 6 . . 6 . . . 4 Parts Rejected 6 | . . . . . . . 1 . . . . . . . . 1 . . 2 1 . . 1 Parts Fused 2 | . . 1 . . . . . . . . . 1 . . . . . . . . . . . Data Loss (minor) 32 | . . 3 . . . . 1 . 2 . 1 1 . 4 1 4 . . 11 4 . . . Data Loss (major) 23 | . 2 1 . . . . . 1 1 . 3 1 . 3 . 1 . . 4 1 . 2 3 Misfires 8 | . . 1 . . . 1 . . . . 1 1 . . . 2 . . 1 . . . 1 Alerts 5 | . 1 1 . . . . . . 1 . . . . . . 1 . . . 1 . . . Misdirections 11 | . . . . . . . . . . . 1 . . . . 5 . . 1 . . . 4 Weapon Failures 18 | . . . . . . . . . . . 1 1 . . . . . . 6 1 . 5 4 Overload Shots 1 | . . . . . . . . . . . . . . . 1 . . . . . . . . Overflow Damage 1804 | . . 105 16 . . 175 . . . . 229 100 . 39 97 56 . 55 669 78 185 . . Projectiles 1189 | . . . 16 . . . . . . . 112 29 . . 87 41 . . 669 61 174 . . Explosions 279 | . . . . . . . . . . . 116 71 . 39 10 15 . . . 17 11 . . Melee 336 | . . 105 . . . 175 . . . . 1 . . . . . . 55 . . . . . Knockbacks 35 | . . . . 2 . 2 . . . . 6 1 . . 7 . . . . 9 8 . . Impact 3 | . . . . . . 2 . . . . . . . . 1 . . . . . . . . Kinetic 31 | . . . . 2 . . . . . . 6 1 . . 5 . . . . 9 8 . . Secondary 1 | . . . . . . . . . . . . . . . 1 . . . . . . . . Self-Inflicted Damage 597 | . . . 56 . . . . . . . 96 146 . 67 125 . . . . . 107 . . Shots 14 | . . . 1 . . . . . . . 1 6 . 2 3 . . . . . 1 . . Rammed 12 | . . . . . . . . . . . 1 . . 11 . . . . . . . . . Targets Rammed 27 | . . . . . . . . . . . 1 . . 13 8 2 . . 1 . . 2 . Kicked 15 | . . . . . . . . . . . . . . 2 8 2 . . 1 . . 2 . Crushed . | . . . . . . . . . . . . . . . . . . . . . . . . Highest Temperature 664 | 38 138 173 473 24 90 313 252 84 315 303 223 404 . 145 344 664 18 344 247 352 478 218 178 Average Temperature 103 | 13 33 31 157 6 39 97 54 44 101 177 72 104 . 88 124 231 10 32 100 75 150 97 61 Received Heat Transfer 5571 | . 258 546 504 36 . 36 42 . . 45 170 492 . 171 267 969 . 527 324 719 234 88 143 Thermoelectric Energy+ 552 | . . . . . . . . . . . . . . . . . . . . . 146 239 167 Effects 53 | . . . 8 . . 2 . . 4 1 1 5 . . 1 16 . . . . 15 . . Shutdowns 13 | . . . 2 . . . . . . . . 1 . . . 6 . . . . 4 . . Energy Bleed 9 | . . . 1 . . . . . . . 1 1 . . 1 4 . . . . 1 . . Interference 19 | . . . . . . 2 . . 3 1 . 2 . . . 2 . . . . 9 . . Matter Decay 3 | . . . 1 . . . . . . . . 1 . . . 1 . . . . . . . Short Circuit 3 | . . . 2 . . . . . . . . . . . . 1 . . . . . . . Damage (minor) 3 | . . . . . . . . . 1 . . . . . . 1 . . . . 1 . . Damage (major) 2 | . . . 2 . . . . . . . . . . . . . . . . . . . . Damage (core) 1 | . . . . . . . . . . . . . . . . 1 . . . . . . . Siege Activations . | . . . . . . . . . . . . . . . . . . . . . . . . Martial Activations . | . . . . . . . . . . . . . . . . . . . . . . . . Shielding Activations . | . . . . . . . . . . . . . . . . . . . . . . . . Robots Disrupted 2 | . . . . . . . . . . . . . . . . . . . . . 2 . . Combat Hostiles 2 | . . . . . . . . . . . . . . . . . . . . . 2 . . Robots Corrupted 2 | . . 1 . . . 1 . . . . . . . . . . . . . . . . . Combat Hostiles 1 | . . 1 . . . . . . . . . . . . . . . . . . . . . Parts Fried 6 | . . 2 . . . 1 . . . . 1 . . . . . . . . 1 1 . . Impact Corruptions 11 | . . 4 . . . 7 . . . . . . . . . . . . . . . . . Robots Melted 19 | . . . . . . . . . . . 1 . . . 1 1 . . 11 5 . . . Combat Hostiles 19 | . . . . . . . . . . . 1 . . . 1 1 . . 11 5 . . . Parts Melted 58 | . 5 1 4 . . . . . . . 3 1 . 2 1 3 . . 26 9 1 2 . Heat Transferred 19247 | 222 1850 823 174 . 210 37 . . 62 100 1125 1085 . 1406 864 777 . . 3919 3459 3134 . . Parts Sabotaged 1 | . . . . . . . . . . . . . . . . 1 . . . . . . . Parts Stolen 2 | . . . 2 . . . . . . . . . . . . . . . . . . . . Parts Stripped . | . . . . . . . . . . . . . . . . . . . . . . . . Power Chain Reactions 1 | . . . 1 . . . . . . . . . . . . . . . . . . . . Alert | -11 -10 -10 -8 -7 -7 -7 -7 -7 -6 -6 -5 -5 -5 -5 -4 -4 -4 -3 -2 -2 -2 -1 -1 ------- Run | Yrd Mat Sub Mat Fac Was Fac Low Zio Pro Fac Fac Ext Cet Arc Fac Arm Lab Res Res Tes Sec Acc Com Maximum Alert Level 5 | . . . 1 1 . 4 . . . . 3 5 3 2 3 3 . 1 4 4 5 5 5 Low Security (%) 38 | 100 100 . 19 85 100 8 . . . 100 35 12 . 74 7 . . 73 27 . . . . Level 1 12 | . . . 80 14 . 3 . . . . 5 40 . 16 7 4 . 26 20 . . . . Level 2 12 | . . . . . . 12 . . . . 20 24 23 8 47 66 . . 7 3 22 . . Level 3 22 | . . . . . . 71 . . . . 37 19 76 . 38 28 . . 21 74 25 3 . Level 4 8 | . . . . . . 4 . . . . . . . . . . . . 22 22 42 23 . Level 5 2 | . . . . . . . . . . . . 3 . . . . . . . . 1 . 70 High Security . | . . . . . . . . . . . . . . . . . . . . . . . 29 Max Security 1 | . . . . . . . . . . . . . . . . . . . . . 8 72 . Peak Influence 2774 | 10 168 . 352 288 97 1139 . . . 54 848 1728 995 504 798 1040 . 243 1325 1329 1737 2774 1790 Initial 1784 | . . . 98 116 97 . . . . . 1 401 963 253 . 345 . . 108 735 744 1100 1784 Average 511 | . 90 . 266 127 18 738 . . . 2 459 493 789 108 609 665 . 106 617 957 1131 1901 1680 Influence Increases 18859 | 20 648 702 693 272 27 1623 372 . 171 54 1436 2091 147 381 1065 1408 . 522 1919 1323 1659 1568 758 Destroy 0b10 Robot/C 8740 | . 380 560 480 140 . 660 260 . 100 40 740 1020 60 80 280 480 . 200 1080 560 760 700 160 Destroy 0b10 Robot/NC 555 | 20 45 5 10 10 . 80 . . 10 . 60 50 5 45 20 10 . 15 25 45 30 45 25 Destroy Leader 1346 | . 78 . 102 22 . 144 30 . 10 . 152 86 . . 66 90 . 40 194 64 124 112 32 Allied During Kill 2894 | . . 47 53 75 . 612 67 . 51 12 204 787 40 . 33 70 . 67 177 81 142 312 64 Successful Hack 80 | . 7 . 5 24 . 16 . . . . 4 . . . . . . . 24 . . . . Select Force Hacks 30 | . 30 . . . . . . . . . . . . . . . . . . . . . . Disable Machine 1080 | . . . 30 . . 15 . . . . 60 15 . 120 390 90 . 30 30 90 165 . 45 Anti-Garrison Action 200 | . . . . . . . . . . . . . . . . . . . 200 . . . . Destroy Structure 2447 | . 3 . 13 1 27 96 . . . 2 156 118 42 136 276 172 . 22 129 225 378 294 357 Partial Spotted 75 | . . . . . . . . . . . . 15 . . . 45 . 15 . . . . . Lose Combat Pursuer 930 | . 105 90 . . . . 15 . . . 60 . . . . 255 . 15 60 90 60 105 75 Miscellaneous 482 | . . . . . . . . . . . . . . . . 196 . 118 . 168 . . . Influence Decreases 17329 | 20 569 592 625 251 305 490 670 835 171 50 620 1191 1233 1015 358 1080 1035 330 802 1309 1257 1076 1445 Entered New Map 7602 | . . 39 91 141 181 . 420 835 . . 3 419 757 381 . 362 1035 . 84 574 579 696 1005 Time Decay 6418 | 20 549 433 404 110 70 370 190 . 171 10 297 482 326 574 268 318 . 105 518 595 518 40 50 Lost Part 1000 | . 20 60 70 . . . . . . . 140 30 30 40 60 220 . 90 110 40 80 . 10 Lost Ally 2309 | . . 60 60 . 54 120 60 . . 40 180 260 120 20 30 180 . 135 90 100 80 340 380 Squads Dispatched 111 | . 3 . 2 . . 10 . . . . 12 6 . . 9 6 . 4 8 9 21 17 4 Investigation 11 | . 2 . . . . 2 . . . . 1 1 . . . 2 . . 1 1 1 . . Extermination 18 | . . . . . . 2 . . . . 1 . . . 1 2 . 1 3 4 4 . . Reinforcement 27 | . 1 . 2 . . 3 . . . . 7 2 . . 3 1 . 3 3 1 . 1 . Assault 42 | . . . . . . . . . . . . 3 . . 2 1 . . 1 3 16 12 4 Garrison 13 | . . . . . . 3 . . . . 3 . . . 3 . . . . . . 4 . Intercept . | . . . . . . . . . . . . . . . . . . . . . . . . Searches Triggered . | . . . . . . . . . . . . . . . . . . . . . . . . Construction Impeded 4 | . . . . . . . . . . . 2 . . . . . . 1 1 . . . . Haulers Reinforced 5 | . . . . . . . . . . . 1 . . . 2 . . . 2 . . . . Active Scanning Responses . | . . . . . . . . . . . . . . . . . . . . . . . . Cargo Convoy Interrupts . | . . . . . . . . . . . . . . . . . . . . . . . . Stealth | -11 -10 -10 -8 -7 -7 -7 -7 -7 -6 -6 -5 -5 -5 -5 -4 -4 -4 -3 -2 -2 -2 -1 -1 --------- Run | Yrd Mat Sub Mat Fac Was Fac Low Zio Pro Fac Fac Ext Cet Arc Fac Arm Lab Res Res Tes Sec Acc Com Distress Signals 40 | . . . 3 1 . . . . . . 4 6 1 . 3 6 . 2 1 4 6 3 . Communications Jammed 19 | . . . . . . . . . . . . 2 . . . . . . . . . 12 5 Distress Signals 19 | . . . . . . . . . . . . 2 . . . . . . . . . 12 5 Times Spotted 649 | . 34 54 23 9 5 27 8 . 6 2 48 62 4 27 37 62 . 20 53 39 44 47 38 Peak Tracking Total 18 | . 4 5 6 4 2 4 3 . 4 2 6 17 5 2 13 16 . 7 5 7 7 7 18 Tactical Retreats 30 | . 6 3 . . . . 1 . . . 2 . . . . 5 . 1 1 4 3 1 3 Traps | -11 -10 -10 -8 -7 -7 -7 -7 -7 -6 -6 -5 -5 -5 -5 -4 -4 -4 -3 -2 -2 -2 -1 -1 ------- Run | Yrd Mat Sub Mat Fac Was Fac Low Zio Pro Fac Fac Ext Cet Arc Fac Arm Lab Res Res Tes Sec Acc Com Traps Triggered 17 | . 4 . 1 1 . 3 . . . . 2 1 . . . 1 . . 1 1 1 1 . Indirectly . | . . . . . . . . . . . . . . . . . . . . . . . . Trap Hack Attempts . | . . . . . . . . . . . . . . . . . . . . . . . . Triggered . | . . . . . . . . . . . . . . . . . . . . . . . . Disarmed . | . . . . . . . . . . . . . . . . . . . . . . . . Reprogrammed . | . . . . . . . . . . . . . . . . . . . . . . . . Reused . | . . . . . . . . . . . . . . . . . . . . . . . . Traps Extracted . | . . . . . . . . . . . . . . . . . . . . . . . . Installed . | . . . . . . . . . . . . . . . . . . . . . . . . Triggered . | . . . . . . . . . . . . . . . . . . . . . . . . Most Traps Carried 3 | . . 3 . . . . . . . . . . . . . . . . . . . . . Machines | -11 -10 -10 -8 -7 -7 -7 -7 -7 -6 -6 -5 -5 -5 -5 -4 -4 -4 -3 -2 -2 -2 -1 -1 ---------- Run | Yrd Mat Sub Mat Fac Was Fac Low Zio Pro Fac Fac Ext Cet Arc Fac Arm Lab Res Res Tes Sec Acc Com Machines Disabled 79 | . . 1 2 . . 1 . . . . 4 4 . 8 26 6 1 2 2 7 12 . 3 Max in Single Turn 6 | . . 1 1 . . 1 . . . . 1 1 . 3 6 2 1 1 1 1 2 . 1 Garrison Access 3 | . . . . . . . . . . . . . . . . . . . 2 1 . . . Machines Repaired . | . . . . . . . . . . . . . . . . . . . . . . . . Machines Dismantled . | . . . . . . . . . . . . . . . . . . . . . . . . Machines Sabotaged . | . . . . . . . . . . . . . . . . . . . . . . . . Overloaded Fab Kills . | . . . . . . . . . . . . . . . . . . . . . . . . Hacking | -11 -10 -10 -8 -7 -7 -7 -7 -7 -6 -6 -5 -5 -5 -5 -4 -4 -4 -3 -2 -2 -2 -1 -1 --------- Run | Yrd Mat Sub Mat Fac Was Fac Low Zio Pro Fac Fac Ext Cet Arc Fac Arm Lab Res Res Tes Sec Acc Com Machines Accessed 38 | . 8 2 4 5 . 5 . . . . 2 1 . . 1 1 . . 5 3 1 . . Terminals 14 | . 6 . 3 1 . 2 . . . . 1 . . . . . . . . . 1 . . Fabricators 10 | . . . . 2 . 3 . . . . 1 . . . . 1 . . 2 1 . . . Repair Stations . | . . . . . . . . . . . . . . . . . . . . . . . . Recycling Units 5 | . 2 . . 1 . . . . . . . 1 . . . . . . 1 . . . . Scanalyzers 4 | . . . 1 1 . . . . . . . . . . 1 . . . . 1 . . . Garrison Access 3 | . . . . . . . . . . . . . . . . . . . 2 1 . . . Total Hacks 92 | . 26 6 6 14 . 11 . . . . 4 4 . . 3 2 . . 10 5 1 . . Successful 45 | . 10 6 3 5 . 3 . . . . 3 2 . . 1 1 . . 7 3 1 . . Failed 44 | . 16 . 2 9 . 8 . . . . 1 2 . . 1 1 . . 3 1 . . . Catastrophic 5 | . 3 . . . . 1 . . . . . . . . . . . . 1 . . . . Database Lockouts 3 | . . . 1 . . . . . . . . . . . 1 . . . . 1 . . . Manual 176 | . 22 . 3 7 . . . . . . 3 26 . . 13 18 . 20 26 12 5 9 12 Terminals 33 | . 19 . 4 2 . 5 . . . . 2 . . . . . . . . . 1 . . Fabricators 27 | . . . . 9 . 6 . . . . 2 . . . . 2 . . 6 2 . . . Repair Stations . | . . . . . . . . . . . . . . . . . . . . . . . . Recycling Units 13 | . 7 . . 1 . . . . . . . 4 . . . . . . 1 . . . . Scanalyzers 9 | . . . 2 2 . . . . . . . . . . 3 . . . . 2 . . . Garrison Access 4 | . . . . . . . . . . . . . . . . . . . 3 1 . . . Terminal Hacks 14 | . 2 6 2 1 . 1 . . . . 1 . . . . . . . . . 1 . . Record 5 | . . 5 . . . . . . . . . . . . . . . . . . . . . Prototype ID Bank 1 | . . . 1 . . . . . . . . . . . . . . . . . . . . Open Door 2 | . . . . . . . . . . . 1 . . . . . . . . . 1 . . Branch Access Points 2 | . . . . 1 . 1 . . . . . . . . . . . . . . . . . Locate Traps 1 | . . . 1 . . . . . . . . . . . . . . . . . . . . Zone Layout 2 | . 2 . . . . . . . . . . . . . . . . . . . . . . Proto ID Catalog 1 | . . 1 . . . . . . . . . . . . . . . . . . . . . Fabricator Hacks 10 | . . . . 1 . 2 . . . . 2 . . . . 1 . . 3 1 . . . Network Status 5 | . . . . 1 . 1 . . . . 1 . . . . 1 . . 1 . . . . Build 5 | . . . . . . 1 . . . . 1 . . . . . . . 2 1 . . . Repair Station Hacks . | . . . . . . . . . . . . . . . . . . . . . . . . Recycling Unit Hacks 5 | . 1 . . 1 . . . . . . . 2 . . . . . . 1 . . . . Report Inventory 1 | . . . . . . . . . . . . 1 . . . . . . . . . . . Retrieve Components 4 | . 1 . . 1 . . . . . . . 1 . . . . . . 1 . . . . Scanalyzer 4 | . . . 1 1 . . . . . . . . . . 1 . . . . 1 . . . Retrieve Study 4 | . . . 1 1 . . . . . . . . . . 1 . . . . 1 . . . Garrison Access Hacks 2 | . . . . . . . . . . . . . . . . . . . 1 1 . . . Seal Access 2 | . . . . . . . . . . . . . . . . . . . 1 1 . . . Unauthorized Hacks 10 | . 7 . . 1 . . . . . . . . . . . . . . 2 . . . . Terminals 6 | . 6 . . . . . . . . . . . . . . . . . . . . . . Botnet 2 | . 2 . . . . . . . . . . . . . . . . . . . . . . Skim 4 | . 4 . . . . . . . . . . . . . . . . . . . . . . Fabricators 2 | . . . . 1 . . . . . . . . . . . . . . 1 . . . . Prioritize 1 | . . . . . . . . . . . . . . . . . . . 1 . . . . Liberate 1 | . . . . 1 . . . . . . . . . . . . . . . . . . . Repair Stations . | . . . . . . . . . . . . . . . . . . . . . . . . Recycling Units 1 | . 1 . . . . . . . . . . . . . . . . . . . . . . Tunnel 1 | . 1 . . . . . . . . . . . . . . . . . . . . . . Scanalyzers . | . . . . . . . . . . . . . . . . . . . . . . . . Garrison Access 1 | . . . . . . . . . . . . . . . . . . . 1 . . . . Jam 1 | . . . . . . . . . . . . . . . . . . . 1 . . . . Data Cores Recovered 3 | . . . . . . . . . . . . . . . . . . 1 1 . 1 . . Used . | . . . . . . . . . . . . . . . . . . . . . . . . Hacking Detections 24 | . 7 . 1 5 . 4 . . . . 2 . . . 1 1 . . 1 2 . . . Full Trace Events 1 | . . . . . . 1 . . . . . . . . . . . . . . . . . Feedback Events . | . . . . . . . . . . . . . . . . . . . . . . . . Feedback Blocked . | . . . . . . . . . . . . . . . . . . . . . . . . Robot Schematics Acquired 11 | . . . . . . . . 4 . . . . . . . . . 3 . 1 . . 3 Robots Built 7 | . . . . . . 4 . . . . 3 . . . . . . . . . . . . Authchips . | . . . . . . . . . . . . . . . . . . . . . . . . Time 233 | . . . . . . 81 . . . . 152 . . . . . . . . . . . . Total Robot Build Rating 19 | . . . . . . 4 . . . . 15 . . . . . . . . . . . . Part Schematics Acquired 46 | . . . . . . . . 15 . . . 11 . . . . . . 15 2 3 . . Parts Built 4 | . . . . . . . . . . . . . . . . . . . 3 1 . . . Authchips . | . . . . . . . . . . . . . . . . . . . . . . . . Time 231 | . . . . . . . . . . . . . . . . . . . 185 46 . . . Total Part Build Rating 36 | . . . . . . . . . . . . . . . . . . . 27 9 . . . Part Studies Acquired 4 | . . . 1 1 . . . . . . . . . . 1 . . . . 1 . . . Parts Repaired . | . . . . . . . . . . . . . . . . . . . . . . . . Time . | . . . . . . . . . . . . . . . . . . . . . . . . Parts Recycled . | . . . . . . . . . . . . . . . . . . . . . . . . Recycled Matter . | . . . . . . . . . . . . . . . . . . . . . . . . Retrieved Matter . | . . . . . . . . . . . . . . . . . . . . . . . . Retrieved Components 14 | . 2 . . 1 . . . . . . . 10 . . . . . . 1 . . . . Parts Scanalyzed . | . . . . . . . . . . . . . . . . . . . . . . . . Part Schematics Acquired . | . . . . . . . . . . . . . . . . . . . . . . . . Parts Damaged . | . . . . . . . . . . . . . . . . . . . . . . . . Bothacking | -11 -10 -10 -8 -7 -7 -7 -7 -7 -6 -6 -5 -5 -5 -5 -4 -4 -4 -3 -2 -2 -2 -1 -1 ------------ Run | Yrd Mat Sub Mat Fac Was Fac Low Zio Pro Fac Fac Ext Cet Arc Fac Arm Lab Res Res Tes Sec Acc Com Used RIF Installer . | . . . . . . . . . . . . . . . . . . . . . . . . Robots Hacked 2 | . . . . . . . . . . . 1 . 1 . . . . . . . . . . Non-combat . | . . . . . . . . . . . . . . . . . . . . . . . . Combat 2 | . . . . . . . . . . . 1 . 1 . . . . . . . . . . Robot Hacks Applied 2 | . . . . . . . . . . . 1 . 1 . . . . . . . . . . parse_system 2 | . . . . . . . . . . . 1 . 1 . . . . . . . . . . Relay Couplers Released . | . . . . . . . . . . . . . . . . . . . . . . . . Fabnet Peak Effective % . | . . . . . . . . . . . . . . . . . . . . . . . . Robots Rewired 24 | . . . . . . . . . . . . 22 . . . . . . . . 2 . . Allies Hacked 7 | . . . . . . 2 . . . 1 3 . . . . . . . 1 . . . . Hacks Repelled . | . . . . . . . . . . . . . . . . . . . . . . . . Allies | -11 -10 -10 -8 -7 -7 -7 -7 -7 -6 -6 -5 -5 -5 -5 -4 -4 -4 -3 -2 -2 -2 -1 -1 -------- Run | Yrd Mat Sub Mat Fac Was Fac Low Zio Pro Fac Fac Ext Cet Arc Fac Arm Lab Res Res Tes Sec Acc Com Total Allies 200 | . . 16 4 7 19 8 . 4 . 3 9 33 . . 3 9 . 8 11 1 4 23 38 Largest Group 19 | . . 9 4 7 19 19 9 5 5 6 6 16 11 5 2 3 . 6 5 5 3 15 19 Highest-Rated Group 690 | . . 171 64 212 465 465 222 185 185 265 317 690 352 136 206 243 . 393 445 445 361 468 330 Highest-Rated Ally 269 | . . 19 16 41 41 35 35 42 42 49 85 70 58 46 103 103 . 81 122 89 148 269 110 Zionite Dispatches 14 | . . . . . . . . . . . 1 2 . . 2 3 . 2 3 . . 1 . Heavy 5 | . . . . . . . . . . . 1 . . . 1 1 . . 2 . . . . Light 2 | . . . . . . . . . . . . 2 . . . . . . . . . . . Hacker 3 | . . . . . . . . . . . . . . . . 1 . 2 . . . . . Demo 1 | . . . . . . . . . . . . . . . . 1 . . . . . . . Experimental 1 | . . . . . . . . . . . . . . . . . . . . . . 1 . Explosive Resupply 1 | . . . . . . . . . . . . . . . 1 . . . . . . . . Heavy Resupply 1 | . . . . . . . . . . . . . . . . . . . 1 . . . . Total Orders 4 | . . . . . . . . . . . . . . . 2 . . . 2 . . . . STAY 2 | . . . . . . . . . . . . . . . 1 . . . 1 . . . . DROP 2 | . . . . . . . . . . . . . . . 1 . . . 1 . . . . Ally Attacks 1513 | . . 66 72 21 47 190 36 . 22 5 104 139 35 2 15 72 . 53 44 41 254 184 111 Total Damage 42191 | . . 867 849 808 1596 4714 822 . 383 164 3651 2979 806 79 1661 3138 . 2112 3386 1087 6676 4137 2276 Kills 249 | . . 15 9 8 2 47 9 . 5 2 25 21 3 . 3 20 . 13 15 9 23 16 4 Allies Corrupted 7 | . . . . . . . 1 . . 2 1 . . . . 1 . . . 2 . . . Allies Melted 3 | . . . . . . . . . . . . 2 . . . 1 . . . . . . . X0-1V1 Amusement Gains 748 | . 12 30 24 50 10 29 16 34 32 3 59 55 22 43 32 29 22 10 30 65 28 58 55 Good Acts 245 | . 3 82 12 1 5 8 . . 3 2 5 11 5 22 1 13 . 9 15 18 17 2 11 Bad Acts 199 | . 5 106 9 . . 1 3 . 3 1 6 3 1 12 2 9 . 4 6 7 3 4 14 Intel | -11 -10 -10 -8 -7 -7 -7 -7 -7 -6 -6 -5 -5 -5 -5 -4 -4 -4 -3 -2 -2 -2 -1 -1 ------- Run | Yrd Mat Sub Mat Fac Was Fac Low Zio Pro Fac Fac Ext Cet Arc Fac Arm Lab Res Res Tes Sec Acc Com Active Infowar (turns) 13157 | 14 1681 1764 . . . 702 . 320 . . 369 713 729 2026 600 590 . 112 2 1184 1541 293 517 Optics 1228 | . . . . . . 702 . 41 . . . . . . . 346 . . . . . . 139 Sensors 1314 | . . . . . . . . . . . 24 . . 1178 . . . 112 . . . . . Terrain 345 | . . . . . . . . . . . 345 . . . . . . . . . . . . Structural 1764 | . . 1764 . . . . . . . . . . . . . . . . . . . . . Seismic 1734 | 14 1681 . . . . . . . . . . . . . . 39 . . . . . . . Decoding 3134 | . . . . . . . . . . . . 479 729 829 600 497 . . . . . . . Cloaking 3835 | . . . . . . . . . . . . . . . . 318 . . 2 1184 1531 293 507 Spoofing 279 | . . . . . . . . 279 . . . . . . . . . . . . . . . Jamming 2601 | . . . . . . . . . . . . 713 579 19 . . . . . . 629 293 368 ECM 2 | . . . . . . . . . . . . . . . . . . . . . 2 . . Robot Analysis Total . | . . . . . . . . . . . . . . . . . . . . . . . . Derelict Logs Recovered 4 | . . 1 . . . . 2 1 . . . . . . . . . . . . . . . Drone Launches . | . . . . . . . . . . . . . . . . . . . . . . . . Drone Recoveries . | . . . . . . . . . . . . . . . . . . . . . . . . Decoded 0b10 Intel 94 | . . . . . . . . . . . . 8 3 3 45 35 . . . . . . . Traps 4 | . . . . . . . . . . . . 4 . . . . . . . . . . . Items 84 | . . . . . . . . . . . . 3 . 1 45 35 . . . . . . . Machines 5 | . . . . . . . . . . . . 1 3 1 . . . . . . . . . Exits 1 | . . . . . . . . . . . . . . 1 . . . . . . . . . Zionite Intel Received 22 | . . . . . . . . . . . . 5 . . 1 2 . 4 3 3 1 . 3 Main Access 2 | . . . . . . . . . . . . . . . . . . . 1 1 . . . Branch Access 2 | . . . . . . . . . . . . 1 . . . . . . 1 . . . . Emergency Access 1 | . . . . . . . . . . . . 1 . . . . . . . . . . . Guard Positions 1 | . . . . . . . . . . . . . . . . 1 . . . . . . . Component Stockpiles 2 | . . . . . . . . . . . . . . . . . . 1 . . . . 1 Prototype Stockpiles 3 | . . . . . . . . . . . . 1 . . . . . . . 1 . . 1 Component Schematics 1 | . . . . . . . . . . . . . . . . . . . 1 . . . . Prototype Schematics 1 | . . . . . . . . . . . . 1 . . . . . . . . . . . Unaware Schematics 2 | . . . . . . . . . . . . . . . . . . 1 . . . . 1 Unaware Analyses 2 | . . . . . . . . . . . . 1 . . . . . 1 . . . . . Active Terminals 4 | . . . . . . . . . . . . . . . 1 1 . 1 . 1 . . . Active Garrisons 1 | . . . . . . . . . . . . . . . . . . . . . 1 . . Exploration | -11 -10 -10 -8 -7 -7 -7 -7 -7 -6 -6 -5 -5 -5 -5 -4 -4 -4 -3 -2 -2 -2 -1 -1 ------------- Run | Yrd Mat Sub Mat Fac Was Fac Low Zio Pro Fac Fac Ext Cet Arc Fac Arm Lab Res Res Tes Sec Acc Com Turns Passed 26000 | 152 2205 3726 960 239 519 898 398 1878 991 175 817 1250 729 3500 600 706 312 264 1437 1882 1552 293 517 Spaces Moved 14783 | 90 751 2796 395 181 303 635 251 1140 493 80 363 623 120 198 338 804 276 630 913 1266 1031 487 619 Core 199 | 25 . 21 . . . . . . . . 33 116 . . . 4 . . . . . . . Treads 1053 | 65 751 105 . . . . . . . . . . . 132 . . . . . . . . . Legs 9131 | . . . 283 181 303 635 251 1140 493 80 330 507 120 66 338 267 . . 763 1266 1025 483 600 Wheels 2782 | . . 2670 112 . . . . . . . . . . . . . . . . . . . . Hover . | . . . . . . . . . . . . . . . . . . . . . . . . Flight 1589 | . . . . . . . . . . . . . . . . 533 276 630 150 . . . . Fastest Speed 14 | 50 160 50 118 113 113 106 116 127 183 185 50 50 115 110 114 23 18 14 24 107 30 30 30 Average Speed 109 | 129 180 109 181 116 114 115 140 160 184 185 152 113 122 144 115 59 29 19 102 111 93 30 36 Slowest Speed 360 | 160 240 240 360 117 183 206 250 217 185 185 260 325 124 160 123 190 100 104 120 206 183 30 90 Overloaded Moves 127 | . . . . . . . . . . . . . . . . 127 . . . . . . . Propulsion Burnouts . | . . . . . . . . . . . . . . . . . . . . . . . . Robots Hopped 6 | . . . . . . . . . . . . . . . . 5 . 1 . . . . . Potential Cave-ins . | . . . . . . . . . . . . . . . . . . . . . . . . Cave-ins Triggered . | . . . . . . . . . . . . . . . . . . . . . . . . Spacefolds 11 | . . . . . . . . . . . . . . . . . . . . . 3 2 6 Exploration Rate (%) 50 | 3 97 94 43 7 94 22 41 90 69 3 18 71 55 96 16 48 94 18 26 91 66 18 33 Regions Visited 23 Branch Regions 12 Pre-discovered Areas 4 | . 1 1 . . . . . 2 . . . . . . . . . . . . . . . Known Exits Taken 8 | . . . 1 . . 1 . . . 1 . 1 . 1 . . . 1 1 . 1 . . Unknown Exits Taken 13 | 1 1 1 . . . . 1 1 1 . 1 . 1 . 1 1 1 . . 1 . 1 . Scrap Searched 18 | . . 9 . . . . 4 2 3 . . . . . . . . . . . . . . Spaces Dug 124 | . . 10 . . . 2 . . 16 . 1 . . . 1 2 . 3 7 19 12 7 44 Terrain Destroyed 1137 | . . 15 14 1 38 6 1 . 17 . 58 92 28 148 117 49 . 3 28 130 80 127 185 Melee 11 | . . 5 . . . 1 . . . . . . . . . . . 3 2 . . . . Projectile 582 | . . 10 3 1 2 4 1 . 2 . 23 18 2 11 19 24 . . 26 99 25 127 185 AOE 519 | . . . 9 . 36 . . . 15 . 35 74 26 137 98 25 . . . 23 41 . . Terrain Rammed . | . . . . . . . . . . . . . . . . . . . . . . . . Walls Destroyed . | . . . . . . . . . . . . . . . . . . . . . . . . Machines Disabled . | . . . . . . . . . . . . . . . . . . . . . . . . Actions | -11 -10 -10 -8 -7 -7 -7 -7 -7 -6 -6 -5 -5 -5 -5 -4 -4 -4 -3 -2 -2 -2 -1 -1 --------- Run | Yrd Mat Sub Mat Fac Was Fac Low Zio Pro Fac Fac Ext Cet Arc Fac Arm Lab Res Res Tes Sec Acc Com Total 22605 | 111 1446 3227 563 199 458 735 276 1193 558 102 524 1014 700 3320 453 964 508 719 1250 1562 1407 554 762 Wait 5051 | . 568 103 65 . 124 46 4 10 52 14 10 69 552 3014 15 24 191 34 54 27 37 3 35 Move 14732 | 89 750 2795 394 181 302 634 250 1139 492 79 362 622 119 197 337 795 275 627 912 1265 1027 484 605 Hop 4 | . . . . . . . . . . . . . . . . 3 . 1 . . . . . Pick Up 316 | 8 18 37 20 4 5 3 5 17 . 3 17 14 8 6 6 22 11 . 17 41 44 4 6 Fast Attach 186 | 1 2 17 2 . . . 1 . . . 5 23 . . . 17 3 22 47 8 27 2 9 Attach 206 | 6 2 17 17 2 4 1 3 9 . 3 15 2 7 5 4 21 10 . 8 26 35 2 7 Detach 48 | . . . . . 2 . . . . . 2 2 1 . . 3 5 2 4 12 12 1 2 Swap 117 | . 12 16 3 2 2 1 . . . . 2 4 1 1 4 4 . . 13 30 15 2 5 Drop 362 | . 13 67 9 4 6 4 2 16 . 1 23 17 7 2 3 21 10 11 41 31 63 5 6 Fire 1256 | 7 81 134 52 6 13 35 11 2 14 2 75 68 5 81 76 39 3 1 151 121 147 49 83 Melee 82 | . . 35 1 . . 11 . . . . 10 1 . . . . . 21 2 1 . . . Ram 2 | . . . . . . . . . . . 1 . . 1 . . . . . . . . . Kick 15 | . . . . . . . . . . . . . . 2 8 2 . . 1 . . 2 . Crush 11 | . . . . . . . . . . . . . . 11 . . . . . . . . . Escape Stasis . | . . . . . . . . . . . . . . . . . . . . . . . . Rewire 206 | . . 6 . . . . . . . . 2 192 . . . 2 . . . . . . 4 Trap . | . . . . . . . . . . . . . . . . . . . . . . . . Miscellaneous 11 | . . . . . . . . . . . . . . . . 11 . . . . . . . Route ------- -11/Scrapyard -10/Materials (discovered 5 exits: [*Mat x3] / [*Min] / *Sub) -10/Subcaves (discovered 2 exits: *Mat / [*Rec]) -8/Materials (discovered 3 exits: *Fac x3) -7/Factory (discovered 2 exits: Low x2) -7/Waste -7/Factory (discovered 2 exits: *Low x2) -7/Lower Caves -7/Zion -6/Proximity Caves -6/Factory (discovered 2 exits: *Fac x2) -5/Factory (discovered 3 exits: Fac / Upp / *Ext) -5/Extension (discovered 3 exits: *Fac x2 / *Cet) -5/Cetus (discovered 2 exits: Fac / [*Arc]) -5/Archives (discovered 2 exits: *Fac / [*Hub]) -4/Factory -4/Armory -4/Lab -3/Research -2/Research (discovered 5 exits: Acc x3 / *Tes x2) -2/Testing (discovered 3 exits: *Acc / *Sec / [*Frg]) -2/Section 7 -1/Access -1/Command (discovered 2 exits: [*Sur x2]) To Fleet Rendezvous History --------- Turn | Location | Event 19 | -11/Scrapyard | Discovered new exit (range 15) 153 | -11/Scrapyard | Entered Materials 312 | -10/Materials | Build established: Mutant 646 | -10/Materials | Discovered new exit (range 6) 859 | -10/Materials | Discovered new exit (range 12) 1086 | -10/Materials | Discovered new exit (range 11) 1428 | -10/Materials | Discovered new exit (range 16) 1429 | -10/Materials | Build established: Scavenger-Mutant 1777 | -10/Materials | Discovered new exit (range 4) 1783 | -10/Materials | Prayed at D.C.S.S. Altar Unit 1793 | -10/Materials | EX resistance permanently improved by X0-1V1 (+10%; -100 max core) 1891 | -10/Materials | X0-1V1 sent hostile S-10 Pest (x3) 2116 | -10/Materials | Core integrity permanently improved by X0-1V1 (+200) 2231 | -10/Materials | Build established: Mutant 2358 | -10/Materials | X0-1V1 sent hostile S-10 Pest (x6) 2358 | -10/Materials | Entered Subcaves 2359 | -10/Subcaves | Approached by a straggling Scientist 2689 | -10/Subcaves | Discovered new exit (range 7) 2689 | -10/Subcaves | X0-1V1 sent you into danger 2714 | -10/Subcaves | Core integrity fell below 50% 2742 | -10/Subcaves | Lost 5 parts (3n1u1w) 2802 | -10/Subcaves | X0-1V1 sent hostile G-34 Mercenary (x4) 2803 | -10/Subcaves | X0-1V1 activates XOMVISION 3014 | -10/Subcaves | Shifting Twisted Machinery released Sub. Laser 3032 | -10/Subcaves | Shifting Twisted Machinery released Lgt. Humpback 3059 | -10/Subcaves | Energy generation permanently improved by X0-1V1 (+15; -150 max core) 3165 | -10/Subcaves | Found Prototype Device 3166 | -10/Subcaves | Identified V3-11A's Pendant 3171 | -10/Subcaves | Visited triangular shrine 3175 | -10/Subcaves | Discovered new exit (range 5) 3236 | -10/Subcaves | Befriended Subdweller 3283 | -10/Subcaves | A swath of the cavern ceiling suddenly collapsed 3298 | -10/Subcaves | Shifting Twisted Machinery released Flamer 3311 | -10/Subcaves | Shifting Twisted Machinery released Piercing Trap 3325 | -10/Subcaves | X0-1V1 mutated your Propulsion slot to Weapon slot 3336 | -10/Subcaves | Befriended Subdweller 3341 | -10/Subcaves | Befriended Subdweller 3438 | -10/Subcaves | Visited Clippyterm 3440 | -10/Subcaves | Learned location of Deep Caves (-7) 3506 | -10/Subcaves | X0-1V1 rewrote IX-VEE(R) IFF filter 3599 | -10/Subcaves | Shifting Twisted Machinery released Battle Rifle 3601 | -10/Subcaves | Befriended Subdweller 3609 | -10/Subcaves | Discovered new exit (range 8) 3622 | -10/Subcaves | Shifting Twisted Machinery released Battle Cannon 3623 | -10/Subcaves | X0-1V1 sent hostile S-10 Pest (x3) 3680 | -10/Subcaves | X0-1V1 activates XOMVISION 3727 | -10/Subcaves | Ambushed by Subdweller buried in earth 3736 | -10/Subcaves | Befriended Subdweller 3791 | -10/Subcaves | Befriended Subdweller 3796 | -10/Subcaves | Befriended Subdweller 3877 | -10/Subcaves | Disturbed a concealed Subdweller 3881 | -10/Subcaves | Befriended Subdweller 4226 | -10/Subcaves | A swath of the cavern ceiling suddenly collapsed 4246 | -10/Subcaves | X0-1V1 activates XOMVISION 4248 | -10/Subcaves | Core integrity restored by X0-1V1 (+60) 4257 | -10/Subcaves | System corruption reached 10% 4259 | -10/Subcaves | X0-1V1 mutated your Utility slot to Propulsion slot 4265 | -10/Subcaves | X0-1V1 rewrote H6-8UD(R) IFF filter 4266 | -10/Subcaves | Befriended Subdweller 4279 | -10/Subcaves | X0-1V1 tapped a No Entrance sign 4285 | -10/Subcaves | X0-1V1 sent you into danger 4291 | -10/Subcaves | Befriended Subdweller 4291 | -10/Subcaves | Befriended Subdweller 4327 | -10/Subcaves | X0-1V1 mutated your Weapon slot to Power slot 4332 | -10/Subcaves | X0-1V1 rewrote RS-RQ1(R) IFF filter 4379 | -10/Subcaves | Core integrity restored by X0-1V1 (+56) 4386 | -10/Subcaves | X0-1V1 rewrote XL-64G(R) IFF filter 4546 | -10/Subcaves | X0-1V1 activates XOMVISION 4901 | -10/Subcaves | X0-1V1 activates XOMVISION 5014 | -10/Subcaves | X0-1V1 mutated your Weapon slot to Utility slot 5098 | -10/Subcaves | X0-1V1 rewrote XP-25Y(R) IFF filter 5103 | -10/Subcaves | X0-1V1 mutated your Utility slot to Propulsion slot 5165 | -10/Subcaves | X0-1V1 rewrote DY-9Q3(R) IFF filter 5257 | -10/Subcaves | X0-1V1 activates XOMVISION 5278 | -10/Subcaves | X0-1V1 rewrote 0Z-DXH(R) IFF filter 5279 | -10/Subcaves | Visited 4L-MR0's lab 5285 | -10/Subcaves | Found Prototype Device 5291 | -10/Subcaves | Found Powered Cannon 5324 | -10/Subcaves | X0-1V1 sent hostile G-34 Mercenary (x3) 5336 | -10/Subcaves | X0-1V1 rewrote 3Q-2V6(R) IFF filter 5419 | -10/Subcaves | X0-1V1 mutated your Propulsion slot to Weapon slot 5423 | -10/Subcaves | X0-1V1 rewrote H6-8UD(R) IFF filter 5432 | -10/Subcaves | X0-1V1 sent hostile S-10 Pest (x3) 5445 | -10/Subcaves | X0-1V1 sent allied G-34 Mercenary (x2) 5483 | -10/Subcaves | X0-1V1 mutated your Weapon slot to Propulsion slot 5487 | -10/Subcaves | X0-1V1 rewrote G-34 Mercenary IFF filter 5494 | -10/Subcaves | Core integrity restored by X0-1V1 (+30) 5551 | -10/Subcaves | X0-1V1 mutated your Propulsion slot to Utility slot 5596 | -10/Subcaves | X0-1V1 activates XOMVISION 5623 | -10/Subcaves | X0-1V1 rewrote G-34 Mercenary IFF filter 5775 | -10/Subcaves | X0-1V1 rewrote G-34 Mercenary IFF filter 5785 | -10/Subcaves | X0-1V1 sent allied S-10 Pest (x4) 5788 | -10/Subcaves | Core integrity restored by X0-1V1 (+30) 5836 | -10/Subcaves | X0-1V1 rewrote S-10 Pest IFF filter 5858 | -10/Subcaves | X0-1V1 activates XOMVISION 5895 | -10/Subcaves | X0-1V1 rewrote S-10 Pest IFF filter 5918 | -10/Subcaves | X0-1V1 mutated your Utility slot to Propulsion slot 5997 | -10/Subcaves | X0-1V1 rewrote S-10 Pest IFF filter 6076 | -10/Subcaves | X0-1V1 sent hostile S-10 Pest (x5) 6084 | -10/Subcaves | Entered Materials 6084 | -8/Materials | Evolved 4 slots: Propulsion x1, Utility x2, Weapon x1 6084 | -8/Materials | Identified Sfc. Transmogrifier 6086 | -8/Materials | Identified exit to Factory 6086 | -8/Materials | X0-1V1 revealed exit location to -7/Factory 6088 | -8/Materials | X0-1V1 redirected Transport squads to designated parking area 6102 | -8/Materials | X0-1V1 sent you into danger 6147 | -8/Materials | X0-1V1 sent you to a vault 6157 | -8/Materials | X0-1V1 foreshadows a heat wave 6179 | -8/Materials | X0-1V1 revealed exit location to -7/Factory 6179 | -8/Materials | Gauss Rifle reconfigured into Item Mimic 6274 | -8/Materials | Attached Powered Cannon, gained temporary slot: Power 6326 | -8/Materials | Lost 3 parts (2n1u) 6355 | -8/Materials | Lost 4 allies 6361 | -8/Materials | Ambient heat levels rising (+10) 6412 | -8/Materials | Destroyed 7 combat bots 6613 | -8/Materials | Central database locked down 6614 | -8/Materials | Ambient heat levels rising (+10) 6679 | -8/Materials | X0-1V1 revealed exit location to -7/Factory 6904 | -8/Materials | Ambient heat levels falling (-10) 7044 | -8/Materials | Entered Factory 7044 | -7/Factory | Evolved 2 slots: Propulsion x1, Utility x1 7159 | -7/Factory | Identified exit to Lower Caves 7185 | -7/Factory | X0-1V1 sent you to a vault 7283 | -7/Factory | Sucked down chute 7283 | -7/Factory | Entered Waste 7303 | -7/Waste | Spotted C-40 Crusher 7304 | -7/Waste | Spotted C-40 Crusher 7305 | -7/Waste | Spotted C-40 Crusher 7320 | -7/Waste | Destroyed C-40 Crusher 7323 | -7/Waste | 3 allies followed down the chute 7378 | -7/Waste | 4 allies followed down the chute 7396 | -7/Waste | Spotted C-40 Crusher 7408 | -7/Waste | Discovered new exit (range 4) 7408 | -7/Waste | X0-1V1 whisked you away to safety 7422 | -7/Waste | Destroyed C-40 Crusher 7422 | -7/Waste | Spotted C-40 Crusher 7428 | -7/Waste | Destroyed C-40 Crusher 7448 | -7/Waste | Spotted C-40 Crusher 7460 | -7/Waste | Destroyed C-40 Crusher 7538 | -7/Waste | Warlord forces began an assault 7752 | -7/Waste | Found Damper Plating 7802 | -7/Waste | Entered Factory 7802 | -7/Factory | Accompanied by 19 allies 7868 | -7/Factory | X0-1V1 downgraded hostiles (x2) 7878 | -7/Factory | Garrison activated, responded to threat 7945 | -7/Factory | Lost 4 allies 7968 | -7/Factory | X0-1V1 activates XOMVISION 8232 | -7/Factory | Lost 5 allies 8347 | -7/Factory | Fabricated K-01 Serf? 8377 | -7/Factory | X0-1V1 sent you to a vault 8543 | -7/Factory | P-60 Hacker assimilated allied Serf 4b 8637 | -7/Factory | Build established: Commander-Mutant 8700 | -7/Factory | Entered Lower Caves 8700 | -7/Lower Caves | Accompanied by 11 allies 8747 | -7/Lower Caves | Learned Factory trap positions 8877 | -7/Lower Caves | Lost 5 allies 8924 | -7/Lower Caves | X0-1V1 rewrote J0-OSY(d) IFF filter 8970 | -7/Lower Caves | Attracted the attention of an 0b10 checkpoint 9012 | -7/Lower Caves | X0-1V1 mutated your Propulsion slot to Weapon slot 9084 | -7/Lower Caves | A Derelict revealed a hidden shortcut to a safe place 9098 | -7/Lower Caves | Entered Zion 9098 | -7/Zion | Accompanied by 1 ally 9167 | -7/Zion | System corruption cleaned by Quarantine Array 9194 | -7/Zion | Found GAL Module 9346 | -7/Zion | Found CR-A16's Pointy Stick 9421 | -7/Zion | Discovered new exit (range 15) 9628 | -7/Zion | Build established: Tank 9876 | -7/Zion | Learned Factory emergency access door positions 9899 | -7/Zion | Learned 4 Factory zone layouts 10111 | -7/Zion | Found Prototype Device 10140 | -7/Zion | Given the Hacking Drone Bay 10140 | -7/Zion | Found Prototype Device 10189 | -7/Zion | Learned location of Data Miner (-6) 10448 | -7/Zion | Found Prototype Processor 10451 | -7/Zion | Found Prototype Processor 10455 | -7/Zion | Found Prototype Processor 10457 | -7/Zion | Found Prototype Processor 10461 | -7/Zion | Identified Exp. Armor Integrity Analyzer (x2) 10467 | -7/Zion | Found Prototype Processor 10471 | -7/Zion | Found Prototype Hackware 10590 | -7/Zion | Met Imprinter 10609 | -7/Zion | Imprinted 10611 | -7/Zion | Declared Zion's savior 10913 | -7/Zion | Visited the Megawrench Repair Shop 10914 | -7/Zion | Identified Exp. Core Analyzer (x2) 10915 | -7/Zion | Identified Exp. Melee Analysis Suite 10918 | -7/Zion | Megawrench repaired 13 parts 10976 | -7/Zion | Entered Proximity Caves 10976 | -6/Proximity Caves | Accompanied by 5 allies 10996 | -6/Proximity Caves | X0-1V1 activates XOMVISION 11183 | -6/Proximity Caves | X0-1V1 vaporized surrounding terrain (radius 18) 11223 | -6/Proximity Caves | Build established: Gunner 11868 | -6/Proximity Caves | X0-1V1 rewrote Fighter 4b IFF filter 11919 | -6/Proximity Caves | Discovered new exit (range 3) 11967 | -6/Proximity Caves | Entered Factory 11967 | -6/Factory | Accompanied by 3 allies 11967 | -6/Factory | Evolved 2 slots: Propulsion x1, Utility x1 11968 | -6/Factory | Identified exit to Factory 11969 | -6/Factory | Loaded intel: 111 trap records 12014 | -6/Factory | X0-1V1 sent you to a vault 12040 | -6/Factory | Discovered exit to Factory (range 12) 12086 | -6/Factory | X0-1V1 mutated your Propulsion slot to Utility slot 12142 | -6/Factory | Entered another Factory area 12142 | -5/Factory | Accompanied by 3 allies 12142 | -5/Factory | Evolved 2 slots: Propulsion x1, Utility x1 12143 | -5/Factory | Identified exit to Upper Caves 12154 | -5/Factory | Identified Exp. Hacking Suite 12307 | -5/Factory | Fabricated G-50 Soldier? 12424 | -5/Factory | Zion Heavy squad teleported in 12425 | -5/Factory | Lost 5 parts (1p1n1u2w) 12432 | -5/Factory | Garrison activated, responded to threat 12538 | -5/Factory | Lost 3 allies 12540 | -5/Factory | Identified exit to Factory 12540 | -5/Factory | X0-1V1 revealed exit location to -4/Factory 12555 | -5/Factory | Allied Derelicts emerged from ambush trap array 12608 | -5/Factory | Lost 4 allies 12644 | -5/Factory | Found Prototype Device 12677 | -5/Factory | X0-1V1 redirected Transport squads to designated parking area 12721 | -5/Factory | X0-1V1 sent you to a vault 12823 | -5/Factory | P-70 Sage assimilated allied Carver 6c 12867 | -5/Factory | System corruption reached 10% 12894 | -5/Factory | Lost 5 parts (1p3n1u) 12955 | -5/Factory | Discovered new exit (range 10) 12959 | -5/Factory | Entered Extension 12965 | -5/Extension | X0-1V1 dreamt of freedom 12967 | -5/Extension | Rescued a captive Derelict 12970 | -5/Extension | Rescued a captive Derelict 12973 | -5/Extension | Rescued a captive Derelict 12977 | -5/Extension | Lost 3 parts (2n1w) 12977 | -5/Extension | Rescued a captive Derelict 12977 | -5/Extension | Rescued a captive Derelict 12978 | -5/Extension | Rescued a captive Derelict 12979 | -5/Extension | Rescued a captive Derelict 12981 | -5/Extension | Rescued a captive Derelict 12981 | -5/Extension | Rescued a captive Derelict 12982 | -5/Extension | Rescued a captive Derelict 12982 | -5/Extension | Rescued a captive Derelict 12993 | -5/Extension | Rescued a captive Derelict 12997 | -5/Extension | Rescued a captive Derelict 13007 | -5/Extension | Retrieved Zion intel report: Branch Access 13007 | -5/Extension | Identified exit to Cetus 13025 | -5/Extension | Core integrity restored by X0-1V1 (+152) 13040 | -5/Extension | X0-1V1 downgraded hostiles (x1) 13056 | -5/Extension | Weapon slot count temporarily expanded by X0-1V1 (+1) 13093 | -5/Extension | Lost 4 allies 13295 | -5/Extension | Lost 5 allies 13486 | -5/Extension | Extracted ID and sensor layout for unrecognized location from A7's data core 13489 | -5/Extension | Discovered exit to Factory (range 16) 13495 | -5/Extension | X0-1V1 upgraded ally (x3) 13622 | -5/Extension | Zion Light squad teleported in 13672 | -5/Extension | Retrieved Zion intel report: Prototype Schematics 13734 | -5/Extension | Retrieved Zion intel report: Emergency Access 13739 | -5/Extension | Retrieved Zion intel report: Unaware Analyses 13859 | -5/Extension | First assault squad dispatched 13894 | -5/Extension | Retrieved Zion intel report: Prototype Stockpiles 13895 | -5/Extension | Zion Light squad teleported in 13911 | -5/Extension | P-70 Sage assimilated allied VB-ELO(g) 13937 | -5/Extension | Lost 4 allies 13983 | -5/Extension | X0-1V1 revealed exit location to -4/Factory 14146 | -5/Extension | Build established: Commander-Tank 14158 | -5/Extension | Disrupted transfer network 14170 | -5/Extension | Core integrity fell below 50% 14186 | -5/Extension | Found Prototype Launcher 14190 | -5/Extension | Destroyed 17 combat bots 14197 | -5/Extension | Lost 4 allies 14209 | -5/Extension | Entered Cetus 14209 | -5/Cetus | Accompanied by 11 allies 14231 | -5/Cetus | Spotted Cetus Guard 14232 | -5/Cetus | Spotted Cetus Guard 14237 | -5/Cetus | Spotted Cetus Guard 14239 | -5/Cetus | Identified Smartbomb Launcher 14244 | -5/Cetus | Spotted Cetus Guard 14247 | -5/Cetus | Allies destroyed Cetus Guard 14268 | -5/Cetus | Allies destroyed Cetus Guard 14277 | -5/Cetus | Allies destroyed Cetus Guard 14284 | -5/Cetus | Lost 3 parts (1p2w) 14305 | -5/Cetus | Lost 6 allies 14369 | -5/Cetus | Discovered new exit (range 15) 14628 | -5/Cetus | X0-1V1 revealed exit location to -4/Factory 14893 | -5/Cetus | Build established: Scavenger-Tank 14938 | -5/Cetus | Entered Archives 14938 | -5/Archives | Accompanied by 5 allies 14988 | -5/Archives | Lost 5 allies 15010 | -5/Archives | Discovered new exit (range 15) 15031 | -5/Archives | Discovered new exit (range 17) 15063 | -5/Archives | Lost 3 parts (1p1n1w) 15153 | -5/Archives | Core integrity restored by X0-1V1 (+190) 15178 | -5/Archives | X0-1V1 activates XOMVISION 15332 | -5/Archives | Build established: Scavenger-Mutant 15461 | -5/Archives | Core integrity restored by X0-1V1 (+190) 15563 | -5/Archives | X0-1V1 activates XOMVISION 15799 | -5/Archives | Build established: Mutant 15814 | -5/Archives | X0-1V1 tapped a No Entrance sign 16027 | -5/Archives | X0-1V1 vaporized surrounding terrain (radius 23) 16194 | -5/Archives | X0-1V1 mutated your Weapon slot to Utility slot 16333 | -5/Archives | X0-1V1 activates XOMVISION 16585 | -5/Archives | Core integrity restored by X0-1V1 (+152) 16621 | -5/Archives | X0-1V1 vaporized surrounding terrain (radius 16) 16859 | -5/Archives | X0-1V1 activates XOMVISION 17150 | -5/Archives | X0-1V1 activates XOMVISION 17392 | -5/Archives | X0-1V1 activates XOMVISION 17716 | -5/Archives | X0-1V1 activates XOMVISION 18438 | -5/Archives | Entered Factory 18438 | -4/Factory | Evolved 2 slots: Power x1, Utility x1 18520 | -4/Factory | Zion Heavy squad teleported in 18636 | -4/Factory | Central database locked down 18677 | -4/Factory | Retrieved Zion intel report: Active Terminals 18678 | -4/Factory | Zion Explosive Resupply teleported in 18684 | -4/Factory | Found Smartbomb Launcher 18938 | -4/Factory | First assault squad dispatched 19022 | -4/Factory | Discovered new exit (range 11) 19038 | -4/Factory | Entered Armory 19066 | -4/Armory | Lost 5 parts (3n1u1w) 19134 | -4/Armory | X0-1V1 added 0b10 threat records associated with you (considerable) 19151 | -4/Armory | Spotted B-86 Titan 19168 | -4/Armory | Destroyed B-86 Titan 19228 | -4/Armory | Zion Heavy squad teleported in 19410 | -4/Armory | System corruption reached 10% 19428 | -4/Armory | X0-1V1 upgraded hostiles (x2) 19435 | -4/Armory | Core integrity fell below 50% 19438 | -4/Armory | Found Unknown Device 19447 | -4/Armory | Identified Adv. Force Booster 19448 | -4/Armory | X0-1V1 sent allied Y-64 Sentinel (x2) 19519 | -4/Armory | Lost 14 parts (2p4n5u3w) 19526 | -4/Armory | Core integrity fell below 20% 19538 | -4/Armory | First assault squad dispatched 19562 | -4/Armory | Retrieved Zion intel report: Active Terminals 19563 | -4/Armory | Zion Hacker squad teleported in 19590 | -4/Armory | Lost 3 parts (1n2u) 19683 | -4/Armory | Zion Demo squad teleported in 19685 | -4/Armory | X0-1V1 activates XOMVISION 19689 | -4/Armory | Retrieved Zion intel report: Guard Positions 19741 | -4/Armory | Discovered new exit (range 5) 19744 | -4/Armory | Entered Lab 19748 | -4/Lab | Discovered new exit (range 9) 19751 | -4/Lab | Hidden lab's door opened automatically 19751 | -4/Lab | Sensor layout match revealed 19752 | -4/Lab | Gained access to the hidden lab's interior 19875 | -4/Lab | Found Prototype Energy Gun 19877 | -4/Lab | Found Prototype Energy Cannon 19879 | -4/Lab | Found Prototype Protection 19880 | -4/Lab | Found Prototype Hackware 19886 | -4/Lab | Identified Quantum Router 19887 | -4/Lab | Identified Tachyon Dispersion Ray 19888 | -4/Lab | Identified Warp Cannon 19918 | -4/Lab | Found Alien Artifact 19918 | -4/Lab | Identified Integrated Dissipator 19918 | -4/Lab | Installed Integrated Dissipator, increased core heat dissipation (+20) 19919 | -4/Lab | Identified Hvy. Regenerative Plating 19922 | -4/Lab | Found Alien Artifact 19925 | -4/Lab | Found Alien Artifact 19981 | -4/Lab | Found Alien Artifact 20017 | -4/Lab | Identified Core Reset Matrix 20017 | -4/Lab | Identified Core Expander 20017 | -4/Lab | Identified Transdimensional Reconstructor 20017 | -4/Lab | Used Core Reset Matrix 20018 | -4/Lab | Installed Core Expander, added new Power slot 20022 | -4/Lab | Discovered new exit (range 9) 20056 | -4/Lab | Entered Research 20056 | -3/Research | Evolved 2 slots: Propulsion x2 20088 | -3/Research | Identified Hacking Drone Bay 20090 | -3/Research | Identified Phasing AFG 20096 | -3/Research | Zion Hacker squad teleported in 20101 | -3/Research | X0-1V1 announced a LAN party 20112 | -3/Research | X0-1V1 activates XOMVISION 20120 | -3/Research | Retrieved Zion intel report: Active Terminals 20122 | -3/Research | Retrieved Zion intel report: Component Stockpiles 20127 | -3/Research | Retrieved Zion intel report: Unaware Analyses 20128 | -3/Research | Discovered new exit (range 17) 20131 | -3/Research | X0-1V1 sent you to a vault 20171 | -3/Research | X0-1V1 added 0b10 threat records associated with you (minor) 20182 | -3/Research | Sensors blinded by X0-1V1 20196 | -3/Research | Build established: Hacker-Sprinter 20262 | -3/Research | Spotted B-86 Titan 20304 | -3/Research | Retrieved Zion intel report: Unaware Schematics 20305 | -3/Research | Zion Hacker squad teleported in 20320 | -3/Research | Lost 9 parts (1p4n3u1w) 20320 | -3/Research | Identified exit to Research 20320 | -3/Research | Entered another Research area 20320 | -2/Research | Evolved 2 slots: Propulsion x1, Utility x1 20340 | -2/Research | Spotted B-90 Cyclops 20340 | -2/Research | X0-1V1 sent you into danger 20346 | -2/Research | Retrieved Zion intel report: Branch Access 20346 | -2/Research | Identified exit to Testing 20347 | -2/Research | Zion Heavy squad teleported in 20349 | -2/Research | System corruption reached 10% 20396 | -2/Research | Fabricated Hvy. Shield Leg? 20475 | -2/Research | Found Prototype Protection 20475 | -2/Research | Identified Zio. Weapon Casing 20476 | -2/Research | Lost 7 parts (2n1u4w) 20503 | -2/Research | X0-1V1 activates XOMVISION 20663 | -2/Research | Found Imp. Particle Accelerator 20739 | -2/Research | Build established: Messiah-Mutant 20767 | -2/Research | Destroyed 12 combat bots 20809 | -2/Research | Found Unknown Launcher 20810 | -2/Research | Identified Fusion Bomb Launcher 20822 | -2/Research | X0-1V1 activates XOMVISION 21007 | -2/Research | Zion Heavy squad teleported in 21097 | -2/Research | Fabricated Rnf. Quantum Reactor (x2) 21276 | -2/Research | Retrieved Zion intel report: Main Access 21276 | -2/Research | Identified exit to Access 21277 | -2/Research | Zion Heavy Resupply teleported in 21479 | -2/Research | Destroyed 7 combat bots 21513 | -2/Research | Retrieved Zion intel report: Component Schematics 21544 | -2/Research | X0-1V1 turns hostiles against one another 21570 | -2/Research | First assault squad dispatched 21644 | -2/Research | X0-1V1 sent you to a vault 21647 | -2/Research | Build established: Wizard-Mutant 21713 | -2/Research | Found Prototype Launcher 21715 | -2/Research | Found Prototype Launcher 21757 | -2/Research | Entered Testing 21757 | -2/Testing | Accompanied by 5 allies 21854 | -2/Testing | Retrieved Zion intel report: Active Terminals 21877 | -2/Testing | Fabricated Biometal Heavy Treads? 21877 | -2/Testing | Retrieved Zion intel report: Prototype Stockpiles 21938 | -2/Testing | X0-1V1 sent you to a vault 21952 | -2/Testing | Found Prototype Device 21966 | -2/Testing | Found Prototype Special Weapon 21973 | -2/Testing | Found Prototype Device 21979 | -2/Testing | Found Prototype Device 21981 | -2/Testing | Identified Exp. Actuator Array 21984 | -2/Testing | Identified Exp. Cloaking Device 21987 | -2/Testing | Identified Gui. Remote Datajack 21990 | -2/Testing | Identified Thermal Barrier 21995 | -2/Testing | Identified Tactical Quantum Warhead (x2) 22017 | -2/Testing | Build established: Hacker-Mutant 22051 | -2/Testing | Retrieved Zion intel report: Main Access 22158 | -2/Testing | Spotted Striker 22167 | -2/Testing | Warp Cannon suddenly broke down 22213 | -2/Testing | Spotted Striker 22379 | -2/Testing | Central database locked down 22631 | -2/Testing | X0-1V1 redirected Transport squads to designated parking area 22670 | -2/Testing | Found Prototype Ballistic Cannon 22713 | -2/Testing | Found Portable AFG 22824 | -2/Testing | X0-1V1 sent you into danger 22827 | -2/Testing | Spotted Alpha 7 22838 | -2/Testing | Identified Perforator 22839 | -2/Testing | Destroyed Striker 22845 | -2/Testing | Destroyed Striker 22912 | -2/Testing | Found Prototype Energy Cannon 22958 | -2/Testing | Found Prototype Ballistic Cannon 22978 | -2/Testing | X0-1V1 mutated your Utility slot to Weapon slot 23224 | -2/Testing | X0-1V1 added 0b10 threat records associated with you (considerable) 23235 | -2/Testing | Terminal network hard line cut 23257 | -2/Testing | First assault squad dispatched 23344 | -2/Testing | X0-1V1 turns hostiles against one another 23486 | -2/Testing | Found Tachyon Dispersion Ray 23490 | -2/Testing | Identified Imp. Potential Cannon 23518 | -2/Testing | X0-1V1 activates XOMVISION 23522 | -2/Testing | Spotted Fortress 23633 | -2/Testing | Discovered new exit (range 5) 23633 | -2/Testing | Discovered new exit (range 6) 23639 | -2/Testing | Entered Section 7 23640 | -2/Section 7 | Detected hypermatrix surge 23640 | -2/Section 7 | Sensed 24 artifacts in vicinity 23809 | -2/Section 7 | X0-1V1 sent you to a vault 23838 | -2/Section 7 | Found Unknown Special Melee Weapon 23839 | -2/Section 7 | Identified Chaos Jack 23843 | -2/Section 7 | Found Prototype Launcher 23843 | -2/Section 7 | Identified Containment Facilitator 23911 | -2/Section 7 | X0-1V1 revealed exit location to -1/Access 23944 | -2/Section 7 | Build established: Hacker-Tank 23972 | -2/Section 7 | Found Spacefold Activator 23992 | -2/Section 7 | Found Integrated Reactor 23992 | -2/Section 7 | Installed Integrated Reactor, increased core energy generation (+10) 24056 | -2/Section 7 | Spotted S7 Guard 24083 | -2/Section 7 | Retrieved Zion intel report: Active Garrisons 24108 | -2/Section 7 | Found Core Membrane 24108 | -2/Section 7 | Installed Core Membrane, gained immunity to corruption 24129 | -2/Section 7 | Spotted S7 Guard 24137 | -2/Section 7 | Found Core Regenerator 24205 | -2/Section 7 | X0-1V1 sent allied B-90 Cyclops (x2) 24216 | -2/Section 7 | Destroyed S7 Guard 24219 | -2/Section 7 | Lost 3 parts (2u1w) 24326 | -2/Section 7 | Lost 3 parts (2p1u) 24370 | -2/Section 7 | Spotted S7 Guard 24379 | -2/Section 7 | Found Integrated Thermoelectric Network 24389 | -2/Section 7 | First assault squad dispatched 24401 | -2/Section 7 | Installed Integrated Thermoelectric Network, gained heat-energy exchange potential 24441 | -2/Section 7 | Identified Omega Cannon 24510 | -2/Section 7 | X0-1V1 enhanced Transport squad support 24522 | -2/Section 7 | Found Prototype Device 24523 | -2/Section 7 | Identified Exp. Transmission Jammer 24535 | -2/Section 7 | Found Prototype Device 24536 | -2/Section 7 | Identified Exp. ECM Suite 24543 | -2/Section 7 | Spotted Alpha 7 24547 | -2/Section 7 | Spotted Alpha 7 24689 | -2/Section 7 | Spotted B-99 Colossus 24727 | -2/Section 7 | Destroyed B-99 Colossus 24786 | -2/Section 7 | Found Core Expander 24788 | -2/Section 7 | Found Core Expander 24790 | -2/Section 7 | Found Core Expander 24834 | -2/Section 7 | Found LRC Insulator 24834 | -2/Section 7 | Installed LRC Insulator, 1 resistance modified: EM +25% 24905 | -2/Section 7 | Found Integrity Redistributor 24986 | -2/Section 7 | Terminal network hard line cut 25041 | -2/Section 7 | Integrated with Sigix Exoskeleton 25041 | -2/Section 7 | Installed Core Expander, added new Utility slot 25043 | -2/Section 7 | Installed Core Expander, added new Utility slot 25045 | -2/Section 7 | Installed Core Expander, added new Propulsion slot 25090 | -2/Section 7 | Spotted Executioner 25090 | -2/Section 7 | Spotted Executioner 25095 | -2/Section 7 | Spotted Striker 25095 | -2/Section 7 | Spotted Striker 25121 | -2/Section 7 | Core integrity fell below 50% 25121 | -2/Section 7 | Destroyed Striker 25129 | -2/Section 7 | Destroyed Striker 25141 | -2/Section 7 | Found Sigix Sheargun 25144 | -2/Section 7 | Found Sigix Sheargun 25149 | -2/Section 7 | X0-1V1 sent you into danger 25167 | -2/Section 7 | Spotted Executioner 25167 | -2/Section 7 | Spotted Executioner 25191 | -2/Section 7 | Entered Access 25191 | -1/Access | Evolved 2 slots: Weapon x2 25196 | -1/Access | Emitted hypermatrix ping 25201 | -1/Access | Assembled emerged from beneath the floor 25213 | -1/Access | Zion Experimental squad teleported in 25281 | -1/Access | Assembled emerged from beneath the floor 25313 | -1/Access | Assembled emerged from beneath the floor 25314 | -1/Access | Garrison activated, responded to threat 25315 | -1/Access | Garrison activated, responded to threat 25328 | -1/Access | Build established: Alien-Sigix 25371 | -1/Access | System corruption reached 10% 25426 | -1/Access | Spotted Striker 25427 | -1/Access | Spotted Striker 25430 | -1/Access | Destroyed Striker 25449 | -1/Access | Destroyed Striker 25470 | -1/Access | Discovered new exit (range 17) 25470 | -1/Access | Destroyed 19 combat bots 25484 | -1/Access | Entered Command 25489 | -1/Command | Emitted hypermatrix ping 25494 | -1/Command | Assembled emerged from beneath the floor 25502 | -1/Command | Retrieved Zion intel report: Prototype Stockpiles 25510 | -1/Command | Retrieved Zion intel report: Component Stockpiles 25522 | -1/Command | Retrieved Zion intel report: Unaware Schematics 25526 | -1/Command | Assembled emerged from beneath the floor 25544 | -1/Command | Assembled emerged from beneath the floor 25562 | -1/Command | Discovered new exit (range 17) 25563 | -1/Command | Assembled emerged from beneath the floor 25579 | -1/Command | Spotted B-99 Colossus 25582 | -1/Command | Assembled emerged from beneath the floor 25601 | -1/Command | High security lockdown imminent 25601 | -1/Command | Destroyed B-99 Colossus 25651 | -1/Command | Lost 5 allies 25681 | -1/Command | High security lockdown engaged 25683 | -1/Command | Spotted Combat Programmer 25711 | -1/Command | Met MAIN.C 25724 | -1/Command | 0b10 Conduit disabled 25751 | -1/Command | MAIN.C's shell transforms into a squad of autonomous robots 25751 | -1/Command | Destroyed MAIN.C Shell 25751 | -1/Command | Spotted M Shell/Def 25751 | -1/Command | Spotted M Shell/Atk 25751 | -1/Command | Spotted M Shell/Def 25751 | -1/Command | Spotted M Shell/Atk 25751 | -1/Command | Spotted M Shell/Atk 25751 | -1/Command | Spotted M Shell/Def 25751 | -1/Command | Spotted M Shell/Atk 25751 | -1/Command | Spotted M Shell/Def 25753 | -1/Command | MAIN.C activated Command garrisons 25759 | -1/Command | Sigix Exoskeleton integrity reduced to 80% 25766 | -1/Command | Discovered new exit (range 18) 25768 | -1/Command | X0-1V1 mutated your Weapon slot to Propulsion slot 25817 | -1/Command | Used Core Regenerator, restored core integrity (+387) 25820 | -1/Command | Sigix Exoskeleton integrity reduced to 60% 25828 | -1/Command | Spotted B-99 Colossus 25863 | -1/Command | Sigix Exoskeleton integrity reduced to 40% 25866 | -1/Command | X0-1V1 mutated your Propulsion slot to Utility slot 25868 | -1/Command | Core integrity fell below 50% 25892 | -1/Command | X0-1V1 sent allied Lightning (x3) 25903 | -1/Command | Destroyed M Shell/Def 25925 | -1/Command | Destroyed Lightning 25938 | -1/Command | Sigix Exoskeleton integrity reduced to 20% 26001 | *** | Heading to fleet! Last Messages --------------- 25996_ System corrupted: Adv. Force Field rejected. 25996_ X0-1V1 thinks you're pretty cool, for now (+39 heat dissipation). 25997_ Acquired Adv. Force Field. 25998_ X0-1V1: "The ol' switcheroo!" Form resolidifies at new position. Y-72 Warden form resolidifies at new position. M Shell/Atk form resolidifies at new position. 25998_ Ranged accuracy returns to normal. 25998_ X0-1V1: "The ol' switcheroo!" Y-72 Warden form resolidifies at new position. Form resolidifies at new position. 25999_ Slug penetrates Wall. 26000_ Spacefolded through Reinforced Barrier. 26001_ C-45 Heavy ARC bursts open, deploying its payload. 26001_ H-88 Terminator unfolds itself. 26001_ Penetrated by Slug. 26001_ Slug penetrates Reinforced Barrier. Map ----- +----------------------------------------------------+ | # ########## % #### ####?? | | # ####### # % #### #####? | | # ########"#####"##/###"#### !=!#####? | | + ## ## !=!#####? | | # + ## !! ###### | | # #" "# ###### | | # !!! ]]= "" ## ###### | | ### !!! ]]= "T % #" %## ###### | | ## !!! ]= "" % #"+""######+######### | | ## |[% ! ######### | | " %i =%! !% ######### | | ## % [* = ######### | | ###### ######""" % k ######### | | ###### #### # M C% ######### | | ###########" " % %o ######### | | #""""""" "" ! " i %% ########? | | #"""% += "" #% %"#+########## ######### | | # %% %=+[ "" #%##### "## ### ######### | | # %% !%"%="" ! " " ; %## ### ######### | | #""% !"=="###### ##### %"## ### ######### | | ######## """####"####; ### ### ######### | | ######## " ! #; ### ### ########## | | %# #;h%### ### ########## | | = # g "#gh### ! ### ########## | | ] /H[k g ##%%! # ### ########## | | # ## X # ### # #### | | # ##% %%#####+###### # #### | | ###################### ###### # * #### | | ##############"####""# #####" # #### | | #### " """"#" # #### | | ###### #### "[ [ # #### | | ###### #### % =+% " #### | | # # #### Y "* " #### | | # # #### #Y% " #### | | # # " Y #g # ! #### | | # # #### = / Y " #### | | # !# ########################% # #### | | # # ############### """ #### ########## | | + # ## ####""T""#### ########## | | # + + ####"" ""#### ########## | | + ??# ## "" # % | | ???????? ##"""" + ! % | | ???????????#"""" # %% | | ???????????? "" # !=########## | | ????????????? # ! ########## | | ?????????????? [ # ########## | | ???????????????####### ########## | | ????????????????###### #### ####### | | ?????????????????#####+#####+##### ####### | | ??????????????????? ## ####### | +----------------------------------------------------+ Best States ------------- Heat Dissipation 186 Energy Generation 129 Energy Capacity 3340 Matter Stores 1000 Matter Capacity 1300 Sight Range 29 Robot Scan Range 19 Terrain Scan Range 30 Terrain Scan Density 1010 Jamming Range 22 Cloak Strength 4 Power Amplification 150 Additional Mass Support 20 EM Shielding 2 Corruption Block 20 Armor Coverage 600 Resistance: KI 50 Resistance: TH 69 Resistance: EX 60 Resistance: EM 75 Resistance: I 50 Resistance: S 50 Resistance: P 50 Core Shielding 30 Power Shielding 90 Utility Shielding 90 Weapon Shielding 100 Point Defense Rating 240 Weapon Cycling 25 Phase Shifting 15 Evasion (%) 70 Targeting Accuracy 8 Target Analysis 8 Core Analysis 12 Armor Integrity Analysis 50 Recoil Reduction 2 Matter Filtering 30 Energy Filtering 30 Particle Charging 40 Salvage Targeting 3 Offensive Hacking 38 Defensive Hacking 35 Item Schematics ----------------- Melee Analysis Suite | -2/Research | Z-intel System Shield | -2/Research | Z-intel Antigrav Array | -2/Research | Z-intel Power Amplifier | -2/Research | Z-intel Adv. Reaction Control System | -2/Research | Z-intel Imp. Launcher Guidance Computer | -2/Research | Z-intel Lrn. Tractor Beam | -2/Research | Z-intel Shield Leg | -2/Research | Z-intel Hyp. Railgun | -2/Research | Z-intel Linear Accelerator | -2/Research | Z-intel Transmission Jammer | -2/Research | Z-intel Point Defense System | -2/Research | Z-intel Adv. Force Field | -2/Research | Z-intel Hcp. Storage Unit | -2/Research | Z-intel Imp. Fusion Compressor | -2/Research | Z-intel Exp. Power Amplifier | -2/Testing | Archive Exp. Core Analyzer | -2/Testing | Archive Cld. Nuclear Pulse Thruster | -2/Section 7 | Archive Adv. Matter Compressor | -2/Section 7 | Archive Enh. Coil Gun | -2/Section 7 | Archive Robot Schematics ------------------ E-15 Imp | -3/Research | Z-intel T-07 Excavator | -3/Research | Z-intel C-55 Analyst | -3/Research | Z-intel S-43 Plague | -2/Testing | Archive R-06 Scavenger | -1/Command | Z-intel G-73 Enforcer | -1/Command | Z-intel A-15 Conveyor | -1/Command | Z-intel Fabricated ------------ K-01 Serf | x4 | -7/Factory | Preloaded G-50 Soldier | x3 | -5/Factory | Preloaded Hvy. Shield Leg | x1 | -2/Research | Preloaded Rnf. Quantum Reactor | x2 | -2/Research | Preloaded Biometal Heavy Treads | x1 | -2/Testing | Preloaded Repaired ---------- Nothing Studied --------- Centrium Leg | -2/Testing | Hacked Alien Tech Used ----------------- Integrated Dissipator Core Reset Matrix Core Expander Integrated Reactor Core Membrane Spacefold Activator Integrated Thermoelectric Network LRC Insulator Sigix Exoskeleton Sigix Sheargun Core Regenerator Achievements -------------- None Challenges ------------ None Game ------ Seed TitaniumFieldUnit Manual? 0 Play Time 04:13:50 Cumulative 962.3 hours Start 2026.07.01 @ 12:58:29 End 2026.07.03 @ 06:47:00 Sessions 40 Manual Loads 0 Difficulty Rogue Special Mode None Game No. 1097 Rogue 1097 Adventurer 0 Explorer 0 Win Type 2 Total 42 Types 20/1/9/3/2/1/3/2/1/0 Lore% 98 Gallery% 96 Achievement% 92 Wizard Run 0 Options --------- Layout 2 ASCII 0 Keyboard 0 Movement Mouse Keybinds 0 Fullscreen 2 Font 24/X11 Map View 50x44 Zoom Use 0% Tactical HUD 1 Map Filters NONE Filters NONE Steam 1 RUN: 90e6b351-d344-4782-945e-2edcf42ce559